{"text_format":"1","workbook":"xlsx","n_sheets":46,"sheets":["Indice","BG","ER","EVPN","EFE","Nota1","Nota 2","Nota 3","Nota 4","Nota 5","Nota 6","Nota 7","Nota 8","Nota 9","Nota 10","Nota 11","Nota 12","Nota 13","Nota 14","Nota 15","Nota 16","Nota 17","Nota 18","Nota 19","Nota 20"," Nota 21","Nota 22","Nota 23","Nota 24","Nota 25","Nota 26","Nota 27","Nota 28","Nota 29","Nota 30","Nota 31","Nota 32","Nota 33","Nota 34","Nota 35","Nota 36","Nota 37","Nota 38","Nota 39","Nota 40","Base de Monedas"],"not_rendered":{"charts":0,"images":4,"macros":1,"external_links":4,"defined_names":2,"comments":0,"pivot_tables":0},"unopened":[],"bounds":{"document_bytes":16777216,"sheet_cells":100000,"rows_first":2000,"rows_last":500,"rows_between":2000,"halvings":0,"cell_chars":16384,"cell_head_chars":4096},"cells_cut":0,"cells_raw":0,"read":"whole","date_system":"1900"}

{"sheet":"Indice","index":0,"n_rows":64,"n_cols":20,"rows_kept":64,"cut":false,"hidden":false,"merged":[]}
[null,"Sociedad:","TECNOLOGIA DEL SUR S.A.E.(TECSUL S.A.E.)","<-- Colocar Nombre de la Sociedad"]
[null,null,null,null,null,null,null,null,null,null,null,null,null,null,null,null,null,null,1,"Enero"]
[null,null,null,null,null,null,null,null,null,null,null,null,null,null,null,null,null,null,2,"Febrero"]
[null,null,null,null,null,null,null,null,null,null,null,null,null,null,null,null,null,null,3,"Marzo"]
[null,null,null,null,null,null,null,null,null,null,null,null,null,null,null,null,null,null,4,"Abril"]
["Fecha Presentación:","2022-09-30","<-- Completar Fecha en formato ",null,null,null,null,null,null,null,null,null,null,null,null,null,null,null,5,"Mayo"]
[null,null,null,null,null,null,null,null,null,null,null,null,null,null,null,null,null,null,6,"Junio"]
[null,null,null,null,null,null,null,null,null,null,null,null,null,null,null,null,null,null,7,"Julio"]
[null,null,"INDICE","REF.",null,null,null,null,null,null,null,null,null,null,null,null,null,null,8,"Agosto"]
[null,"Informacion General",null,null,null,null,null,null,null,null,null,null,null,null,null,null,null,null,9,"Septiembre"]
[null,null,"Descripción de la naturaleza y del negocio de la Sociedad","Nota 1",null,null,null,null,null,null,null,null,null,null,null,null,null,null,10,"Octubre"]
[null,null,"Resumen de las principales políticas contables","Nota 2",null,null,null,null,null,null,null,null,null,null,null,null,null,null,11,"Noviembre"]
[null,"Balance General",null,"BG",null,null,null,null,null,null,null,null,null,null,null,null,null,null,12,"Diciembre"]
[null,null,"Efectivo y equivalente de efectivo","Nota 3"]
[null,null,"Inversiones temporales","Nota 4"]
[null,null,"Cuentas por cobrar comerciales","Nota 5"]
[null,null,"Otros créditos","Nota 6"]
[null,null,"Cuentas por cobrar comerciales","Nota 5"]
[null,null,"Inventarios","Nota 7"]
[null,null,"Inversión en asociadas","Nota 8"]
[null,null,"Propiedades, planta y equipo","Nota 9"]
[null,null,"Activos disponibles para la venta","Nota 10"]
[null,null,"Activos intangibles","Nota 11"]
[null,null,"Goodwill","Nota 12"]
[null,null,"Cuentas por pagar comerciales","Nota 13"]
[null,null,"Préstamos a corto plazo","Nota 14"]
[null,null,"Porción corriente de la deuda a largo plazo","Nota 15"]
[null,null,"Remuneraciones y cargas sociales a pagar","Nota 16"]
[null,null,"Impuestos a pagar","Nota 17"]
[null,null,"Provisiones","Nota 18"]
[null,null,"Otros pasivos corrientes","Nota 19"]
[null,null,"Prestamos a largo plazo","Nota 14"]
[null,null,"Otros pasivos no corrientes","Nota 19"]
[null,null,"Capital integrado","Nota 20"]
[null,null,"Reserva de revalúo","Nota 21"]
[null,null,"Reserva legal","Nota 21"]
[null,null,"Reservas estatutarias","Nota 21"]
[null,null,"Reservas facultativas","Nota 21"]
[null,null,"Diferencia transitoria por conversión","Nota 22"]
[null,null,"Resultados acumulados","Nota 23"]
[null,null,"Interés minoritario","Nota 24"]
[null,"Estado de Resultados ",null,"ER"]
[null,null,"Ventas","Nota 25"]
[null,null,"Costo de ventas","Nota 26"]
[null,null,"Gastos de ventas","Nota 27"]
[null,null,"Gastos administrativos","Nota 27"]
[null,null,"Otros ingresos y gastos operativos","Nota 28"]
[null,null,"Ingresos financieros - neto","Nota 29"]
[null,null,"Gastos financieros - neto","Nota 29"]
[null,null,"Resultado de inversiones en asociadas","Nota 30"]
[null,null,"Resultado participación minoritaria","Nota 31"]
[null,null,"Impuesto a la renta","Nota 32"]
[null,null,"Resultado extraordinario neto de impuesto a la renta","Nota 33"]
[null,null,"Resultado sobre actividades discontinuadas neto de impuesto a la renta","Nota 34"]
[null,null,"Utilidad/(Pérdida) neta del año","Nota 35"]
[null,null,"Utilidad neta por acción ordinaria","Nota 35"]
[null,"Estado de Evolución del Patrimonio Neto",null,"EVPN"]
[null,"Estado de Flujos de Efectivo",null,"EFE"]
[null,"Otras Notas de los Estados Financieros"]
[null,null,"Activos gravados","Nota 36"]
[null,null,"Contingencias y compromisos","Nota 37"]
[null,null,"Impuesto diferido","Nota 38"]
[null,null,"Hechos posteriores","Nota 39"]
[null,null,"Saldos y transacciones con partes relacionadas","Nota 40"]

{"sheet":"BG","index":1,"n_rows":59,"n_cols":7,"rows_kept":59,"cut":false,"hidden":false,"merged":[[64,5,64,6],[13,2,13,3],[14,2,14,3],[15,2,15,3],[16,2,16,3],[17,2,17,3],[26,2,26,3],[31,2,31,3],[33,2,33,3],[34,2,34,3],[35,2,35,3],[36,2,36,3],[54,2,54,3],[49,2,49,3],[50,2,50,3],[51,2,51,3],[6,0,6,6],[8,0,8,6],[63,5,63,6],[52,2,52,3],[53,2,53,3],[27,2,27,3],[24,2,24,3],[25,2,25,3],[20,2,20,3],[22,2,22,3],[23,2,23,3],[32,2,32,3],[7,0,7,6],[69,5,69,6],[70,1,70,3],[11,1,11,3],[29,1,29,3],[45,1,45,3],[44,1,44,3],[55,1,55,3],[68,5,68,6],[28,1,28,3],[56,1,56,3],[37,2,37,3],[40,2,40,3],[41,2,41,3],[46,2,46,3],[48,2,48,3],[47,2,47,3]]}
[null,null,null,{"$f":"Indice!C1","v":"TECNOLOGIA DEL SUR S.A.E.(TECSUL S.A.E.)"},"Indice"]
[]
[]
[]
[]
[]
["BALANCE GENERAL"]
[{"$f":"IFERROR(IF(Indice!B6=\"\",\"Al dia 31 de Marzo de año 2021\",\"Al \"&DAY(Indice!B6)&\" de \"&VLOOKUP(MONTH(Indice!B6),Indice!S:T,2,0)&\" de \"&YEAR(Indice!B6)),\"Al dia... de mes… de año 2XX2…\")","v":"Al 30 de Septiembre de 2022"}]
["(En guaraníes)"]
[]
[null,null,null,null,"Nota",2022,2021]
[null,"ACTIVOS"]
[null,"Activos Corrientes"]
[null,null,"Efectivo y equivalente de efectivo",null,3,{"$f":"'Nota 3'!C21","v":5496601879},{"$f":"'Nota 3'!D21","v":8836449157}]
[null,null,"Inversiones temporales",null,4,{"$f":"'Nota 4'!B18","v":1551053468},{"$f":"'Nota 4'!C18","v":1919884397}]
[null,null,"Cuentas por cobrar comerciales",null,5,{"$f":"'Nota 5'!C27","v":28634976045},{"$f":"'Nota 5'!D27","v":36363062535}]
[null,null,"Otros créditos",null,6,{"$f":"'Nota 6'!B42","v":65107993739},{"$f":"'Nota 6'!C42","v":45828295735}]
[null,null,"Inventarios",null,7,{"$f":"'Nota 7'!B16","v":25130251288},{"$f":"'Nota 7'!C16","v":16125106100}]
[null,null,"Total activos corrientes",null,null,{"$f":"SUM(F14:F18)","v":125920876419},{"$f":"SUM(G14:G18)","v":109072797924}]
[null,"Activos no Corrientes"]
[null,null,"Otros créditos ",null,6,{"$f":"'Nota 6'!F19","v":10029888385},{"$f":"'Nota 6'!G19","v":13929035616}]
[null,null,"Cuentas por cobrar comerciales",null,5,{"$f":"'Nota 5'!C54","v":0},{"$f":"'Nota 5'!D54","v":0}]
[null,null,"Inversión en asociadas",null,8,{"$f":"'Nota 8'!B8","v":1943525341},{"$f":"'Nota 8'!C8","v":1913843256}]
[null,null,"Propiedades, planta y equipo/Bienes de uso, neto",null,9,{"$f":"'Nota 9'!L35","v":77504933903},{"$f":"'Nota 9'!M35","v":75546623853}]
[null,null,"Activos disponibles para la venta",null,10,{"$f":"'Nota 10'!B19","v":0},{"$f":"'Nota 10'!C19","v":0}]
[null,null,"Activos intangibles",null,11,{"$f":"'Nota 11'!B11","v":156843474},{"$f":"'Nota 11'!C11","v":214405449}]
[null,null,"Goodwill",null,12,{"$f":"'Nota 12'!B11","v":0},{"$f":"'Nota 12'!C11","v":0}]
[null,null,"Total activos no corrientes",null,null,{"$f":"SUM(F21:F27)","v":89635191103},{"$f":"SUM(G21:G27)","v":91603908174}]
[null,"Total Activos",null,null,null,{"$f":"+F19+F28","v":215556067522},{"$f":"+G19+G28","v":200676706098}]
[null,"PASIVOS Y PATRIMONIO NETO"]
[null,"Pasivos corrientes",null,null,null,-1]
[null,null,"Cuentas por pagar comerciales",null,13,{"$f":"'Nota 13'!D17","v":31900157198},{"$f":"'Nota 13'!E17","v":21016170316}]
[null,null,"Préstamos a corto plazo ",null,14,{"$f":"'Nota 14'!E51","v":29229700679},{"$f":"'Nota 14'!K51","v":12707330317}]
[null,null,"Porción corriente de la deuda a largo plazo",null,15,{"$f":"'Nota 15'!B15","v":0},{"$f":"'Nota 15'!C15","v":0}]
[null,null,"Remuneraciones y cargas sociales a pagar",null,16,{"$f":"'Nota 16'!B12","v":913847830},{"$f":"'Nota 16'!C12","v":522259312}]
[null,null,"Impuestos a pagar",null,17,{"$f":"'Nota 17'!B13","v":7512389},{"$f":"'Nota 17'!C13","v":2002713277}]
[null,null,"Provisiones",null,18,{"$f":"'Nota 18'!B13","v":10080800},{"$f":"'Nota 18'!C13","v":3800000}]
[null,null,"Otros pasivos corrientes",null,19,{"$f":"'Nota 19'!B22","v":16498333080},{"$f":"'Nota 19'!C22","v":9712104799}]
[null,null,"Total Pasivos Corrientes",null,null,{"$f":"SUM(F32:F38)","v":78559631976},{"$f":"SUM(G32:G38)","v":45964378021}]
[null,"Pasivos no corrientes"]
[null,null,"Préstamos a largo plazo ",null,14,{"$f":"'Nota 14'!E84","v":50324277163},{"$f":"'Nota 14'!K84","v":53503187761}]
[null,null,"Otros pasivos  no corrientes",null,19,{"$f":"'Nota 19'!F21","v":26837318044},{"$f":"'Nota 19'!G21","v":42896980730}]
[null,null,"Total pasivos no corrientes",null,null,{"$f":"SUM(F41:F42)","v":77161595207},{"$f":"SUM(G41:G42)","v":96400168491}]
[]
[null,"Total Pasivos",null,null,null,{"$f":"+F39+F43","v":155721227183},{"$f":"+G39+G43","v":142364546512}]
[null,"Patrimonio Neto"]
[null,null,"Capital integrado",null,20,{"$f":"'Nota 20'!B13","v":50700000000},{"$f":"'Nota 20'!C13","v":46000000000}]
[null,null,"Reserva de revalúo",null,21,{"$f":"' Nota 21'!B8","v":3950679497},{"$f":"' Nota 21'!C8","v":3950679497}]
[null,null,"Reserva legal",null,21,{"$f":"' Nota 21'!B14","v":2514614544},{"$f":"' Nota 21'!C14","v":2514614544}]
[null,null,"Reservas estatutarias",null,21,{"$f":"' Nota 21'!B18","v":0},{"$f":"' Nota 21'!C18","v":0}]
[null,null,"Reservas facultatitvas",null,21,{"$f":"' Nota 21'!B22","v":0},{"$f":"' Nota 21'!C22","v":0}]
[null,null,"Diferencia transitoria por conversión",null,22,{"$f":"'Nota 22'!B8","v":0},{"$f":"'Nota 22'!C8","v":0}]
[null,null,"Resultados acumulados",null,23,{"$f":"'Nota 23'!B10","v":2669546298},{"$f":"'Nota 23'!C10","v":5846865545}]
[null,null,"Subtotal",null,null,{"$f":"SUM(F47:F53)","v":59834840339},{"$f":"SUM(G47:G53)","v":58312159586}]
[null,null,"Interés minoritario",null,24,{"$f":"'Nota 24'!B8","v":0},{"$f":"'Nota 24'!C8","v":0}]
[null,"Total Patrimonio Neto",null,null,null,{"$f":"F54","v":59834840339},{"$f":"G54","v":58312159586}]
[null,"Total Pasivos y Patrimonio Neto",null,null,null,{"$f":"+F45+F56","v":215556067522},{"$f":"+G45+G56","v":200676706098}]
[]
[null,"Las notas que se acompañan forman parte integrante de estos estados."]

{"sheet":"ER","index":2,"n_rows":35,"n_cols":4,"rows_kept":35,"cut":false,"hidden":false,"merged":[[46,2,46,3],[6,0,6,3],[7,0,7,3],[8,0,8,3],[9,0,9,3],[40,2,40,3]]}
[{"$f":"Indice!C1","v":"TECNOLOGIA DEL SUR S.A.E.(TECSUL S.A.E.)"},"Indice",null,{"$f":"ER!A4","v":" "}]
[]
[]
[" "]
[]
[]
["ESTADO DE RESULTADOS"]
[{"$f":"IFERROR(IF(Indice!B6=\"\",\"Al 31... De Marzo de año 2021…\",\"Al \"&DAY(Indice!B6)&\" de \"&VLOOKUP(MONTH(Indice!B6),Indice!S:T,2,0)&\" de \"&YEAR(Indice!B6)),\"Al dia... de mes… de año 2XX2…\")","v":"Al 30 de Septiembre de 2022"}]
["Comparativo con igual período del año anterior"]
[" (En Guaraníes)"]
[]
[null,"Nota",2022,2021]
["Ventas",25,{"$f":"'Nota 25'!B31","v":84367917050},{"$f":"'Nota 25'!C31","v":123366644325}]
["Costo de ventas",26,{"$f":"'Nota 26'!B27","v":51456654703},{"$f":"'Nota 26'!C27","v":74658289242}]
["Utilidad bruta",null,{"$f":"C13-C14","v":32911262347},{"$f":"D13-D14","v":48708355083}]
["Gastos de ventas",27,{"$f":"'Nota 27'!B68","v":11180434441},{"$f":"'Nota 27'!E68","v":14940690779}]
["Gastos administrativos ",27,{"$f":"'Nota 27'!C68","v":16694518916},{"$f":"'Nota 27'!F68","v":24054378608}]
["Otros ingresos  y gastos operativos",28,{"$f":"'Nota 28'!B13","v":180462530},{"$f":"'Nota 28'!C13","v":514406083}]
["Resultado operativo",null,{"$f":"+C15-C16-C17+C18","v":5216771520},{"$f":"+D15-D16-D17+D18","v":10227691779}]
["Ingresos financieros - neto",29,{"$f":"'Nota 29'!B13","v":1848891128},{"$f":"'Nota 29'!C13","v":3438787700}]
["Gastos financieros -  neto",29,{"$f":"'Nota 29'!F13","v":4396116350},{"$f":"'Nota 29'!G13","v":6848213368}]
["Subtotal",null,{"$f":"+C19+C20-C21","v":2669546298},{"$f":"+D19+D20-D21","v":6818266111}]
["Resultado de inversiones en asociadas",30,{"$f":"'Nota 30'!B16","v":0},{"$f":"'Nota 30'!C16","v":0}]
["Resultados ordinarios antes de impuesto a la renta y participación minoritaria",null,{"$f":"C22+C23","v":2669546298},{"$f":"D22+D23","v":6818266111}]
["Resultado participación minoritaria",31,{"$f":"'Nota 31'!B16","v":0},{"$f":"'Nota 31'!C16","v":0}]
["Resultado ordinario antes del impuesto a la renta"]
["Impuesto a la renta",32,{"$f":"'Nota 32'!B14","v":0},{"$f":"'Nota 32'!C14","v":971400566}]
["Resultado neto de actividades ordinarias"]
["Resultado extraordinario neto de impuesto a la renta",33,{"$f":"'Nota 33'!B9","v":0},{"$f":"'Nota 33'!C9","v":5846865545}]
["Resultado sobre actividades discontinuadas neto de impuesto a la renta",34,{"$f":"'Nota 34'!B12","v":0},{"$f":"'Nota 34'!C12","v":0}]
["Utilidad/(Pérdida) neta del año ",null,{"$f":"+C29","v":0},{"$f":"+D29","v":5846865545}]
["Utilidad neta por acción ordinaria",35,{"$f":"'Nota 35'!B10","v":52653.773136094678},{"$f":"'Nota 35'!C10","v":127105.7727173913}]
[]
[]
["Las notas que se acompañan forman parte integrante de estos estados."]

{"sheet":"EVPN","index":3,"n_rows":32,"n_cols":20,"rows_kept":32,"cut":false,"hidden":false,"merged":[[10,17,11,17],[10,19,11,19],[5,0,5,15],[6,0,6,15],[10,2,11,2],[10,5,11,5],[10,7,11,7],[10,9,11,9],[10,11,11,11],[10,13,11,13],[10,15,11,15],[10,0,11,0],[9,2,9,5],[9,11,9,15]]}
[{"$f":"Indice!C1","v":"TECNOLOGIA DEL SUR S.A.E.(TECSUL S.A.E.)"},null,null,null,null,null,null,"Indice"]
[]
[]
[null,null,null,null,null,"ESTADO DE EVOLUCIÓN DEL PATRIMONIO NETO"]
[null,null,null,null,null,null,null,{"$f":"IFERROR(IF(Indice!B6=\"\",\"Al 31 de marzo de año 2021\",\"Al \"&DAY(Indice!B6)&\" de \"&VLOOKUP(MONTH(Indice!B6),Indice!S:T,2,0)&\" de \"&YEAR(Indice!B6)),\"Al dia... de mes… de año 2XX2…\")","v":"Al 30 de Septiembre de 2022"}]
["Comparativo con igual periodo del año anterior"]
["(En Guaraníes)"]
[]
[]
[null,null,"Aporte de los propietarios",null,null,null,null,null,null,null,null,"Ganancias reservadas"]
[null,null,"Capital suscripto e integrado","Aporte para",null,"Primas de emisión",null,"Reserva de revalúo",null,"Reserva de revalúo técnico",null,"Reserva legal",null,"Reserva facultativa",null,"Resultados acumulados",null,"Interes Minoritario",null,"Total"]
[null,null,null,"aumento de capital",null,null,null,null,null,null,null,null,null,null,null,"Total"]
[]
[{"$f":"IFERROR(IF(Indice!B6=\"\",\"Saldo al inicio del ejercicio 2021 \",\"Saldo al \"&DAY(Indice!B6)&\" de \"&VLOOKUP(MONTH(Indice!B6),Indice!S:T,2,0)&\" de \"&YEAR(Indice!B6-730)),\"Saldo al .. de  de 2021 \")","v":"Saldo al 30 de Septiembre de 2020"},null,21000000000,null,null,null,null,3955048833,null,null,null,2206884778,null,null,null,27228990461,null,null,null,{"$f":"+P14+L14+H14+C14","v":54390924072}]
["Cambio en política contable (Nota….)"]
["Saldo reestructurado",null,21000000000,null,null,null,null,3955048833,null,null,null,2206884778,null,null,null,27228990461,null,null,null,{"$f":"+P16+L16+H16+C16","v":54390924072}]
["Distribución de dividendos s/Acta de Asamblea Ordinaria Nº18 de fecha 30 de abril de 2021",null,null,null,null,null,null,null,null,null,null,null,null,null,null,-27228990461,null,null,null,-2228990461]
["Integración del capital social",null,25000000000]
["Reducción del capital social s/Acta de Asamblea General Ordinaria N°… de fecha…….."]
["Revalúo de activos fijos",null,null,null,null,null,null,0,null,null,null,null,null,null,null,null,null,null,null,0]
["Revalúo técnico"]
["Resultado del año",null,null,null,null,null,null,-4369336,null,null,null,307729766,null,null,null,5846865545,null,null,null,{"$f":"+P22+L22+H22","v":6150225975}]
[]
[{"$f":"IFERROR(IF(Indice!B6=\"\",\"Saldo 31 de diciembre de 2021 \",\"Saldo al \"&DAY(Indice!B6)&\" de \"&VLOOKUP(MONTH(Indice!B6),Indice!S:T,2,0)&\" de \"&YEAR(Indice!B6-365)),\"Saldo al .. de  de 20X1 \")","v":"Saldo al 30 de Septiembre de 2021"},null,{"$f":"C16+C17+C18+C19+C20+C21+C22","v":46000000000},{"$f":"SUM(D14:D22)","v":0},null,{"$f":"F16+F17+F18+F19+F20+F21+F22","v":0},{"$f":"SUM(G14:G23)","v":0},{"$f":"H16+H17+H18+H19+H20+H21+H22","v":3950679497},null,{"$f":"J16+J17+J18+J19+J20+J21+J22","v":0},null,{"$f":"L16+L17+L18+L19+L20+L21+L22","v":2514614544},null,{"$f":"N16+N17+N18+N19+N20+N21+N22","v":0},null,{"$f":"P16+P17+P18+P19+P20+P21+P22","v":5846865545},null,{"$f":"R16+R17+R18+R19+R20+R21+R22","v":0},null,{"$f":"T16+T17+T18+T19+T20+T21+T22","v":58312159586}]
["Distribución de dividendos s/Acta de Asamblea General Ordinaria N°21 de fecha 28 de marzo de 2022",null,4700000000,null,null,null,null,null,null,null,null,null,null,null,null,-5846865545,null,null,null,-1146865545]
["Revalúo de activos fijos",null,null,null,null,null,null,null,null,null,null,0]
["Desafectación de la reserva de revalúo técnico"]
["Resultado del año",null,null,null,null,null,null,0,null,null,null,0,null,null,null,2669546298,null,null,null,{"$f":"+L28+P28+H28","v":2669546298}]
[]
[{"$f":"IFERROR(IF(Indice!B6=\"\",\"Saldo 31 de marzo de  2021 \",\"Saldo al \"&DAY(Indice!B6)&\" de \"&VLOOKUP(MONTH(Indice!B6),Indice!S:T,2,0)&\" de \"&YEAR(Indice!B6)),\"Saldo al .. de  de 20X2 \")","v":"Saldo al 30 de Septiembre de 2022"},null,{"$f":"C24+C25+C26+C27+C28","v":50700000000},{"$f":"SUM(D24:D28)","v":0},null,{"$f":"F24+F25+F26+F27+F28","v":0},null,{"$f":"H24+H25+H26+H27+H28","v":3950679497},null,{"$f":"J24+J25+J26+J27+J28","v":0},null,{"$f":"L24+L25+L26+L27+L28","v":2514614544},null,{"$f":"N24+N25+N26+N27+N28","v":0},null,{"$f":"P24+P25+P26+P27+P28","v":2669546298},null,{"$f":"R24+R25+R26+R27+R28","v":0},null,{"$f":"+T24+T28+T25+T26","v":59834840339}]
[]
["Las notas que se acompañan forman parte integrante de estos estados."]

{"sheet":"EFE","index":4,"n_rows":43,"n_cols":3,"rows_kept":43,"cut":false,"hidden":false,"merged":[[2,0,2,2],[4,0,4,2],[5,0,5,2],[6,0,6,2],[7,0,7,2]]}
[{"$f":"Indice!C1","v":"TECNOLOGIA DEL SUR S.A.E.(TECSUL S.A.E.)"}]
[]
[]
[]
["ESTADO DE FLUJOS DE EFECTIVO (Método directo)"]
[{"$f":"IFERROR(IF(Indice!B6=\"\",\"Al 31 de marzo de año 2021\",\"Al \"&DAY(Indice!B6)&\" de \"&VLOOKUP(MONTH(Indice!B6),Indice!S:T,2,0)&\" de \"&YEAR(Indice!B6)),\"Al dia... de mes… de año 2XX2…\")","v":"Al 30 de Septiembre de 2022"}]
["Comparativo con igual periodo del año anterior"]
["(En  guaraníes)"]
[]
[]
[null,2022,2021]
[]
["FLUJO DE EFECTIVO DE ACTIVIDADES OPERATIVAS"]
["Cobranzas efectuadas a clientes",91196857079,143926379108]
["Pagos efectuados a proveedores y empleados",-37162620103,-105189065158]
["Efectivo generado por las operaciones",-37557466744,-47358516230]
["Intereses pagados",1155995653,915290546]
["Otros ingresos y (egresos) - neto",0,0]
["Pagos de impuesto a la renta",-3621907180,-124796909]
["Flujo neto de efectivo de actividades operativas",{"$f":"SUM(B14:B19)","v":14010858705},{"$f":"SUM(C14:C19)","v":-7830708643}]
[]
["FLUJO DE EFECTIVO DE ACTIVIDADES DE INVERSIÓN "]
["Adquisición de bienes de uso",-6028718082,-4198744233]
["Adquisición de bienes Curtiembre - fideicomitida"]
["Ventas de activos fijos",0,0]
["Ventas de bienes de uso"]
["Intereses cobrados sobre inversiones"]
["Aquisición de inversiones",339148844,-1890202312]
["Flujo neto de efectivo de actividades de inversión",{"$f":"SUM(B23:B28)","v":-5689569238},{"$f":"SUM(C23:C28)","v":-6088946545}]
[]
["FLUJO DE EFECTIVO DE ACTIVIDADES DE FINANCIACIÓN"]
["(Disminución) Incremento de préstamos",-11618653994,12363083592]
["Aportes de capital recibidos"]
["Dividendos pagados",0,-176952500]
["Flujo neto de efectivo de actividades de financiamiento",{"$f":"B32+B33+B34","v":-11618653994},{"$f":"C32+C33+C34","v":12186131092}]
[]
["(Disminución) Incremento neto de efectivo",{"$f":"+B20+B29+B35","v":-3297364527},{"$f":"+C20+C29+C35","v":-1733524096}]
["Efecto estimado de la diferencia de cambio sobre el saldo de efectivo",-42482751,308938697]
["Efectivo al principio del año",8836449157,10261034556]
[]
["Efectivo al final del periodo",{"$f":"+SUM(B37:B39)","v":5496601879},{"$f":"+SUM(C37:C39)","v":8836449157}]
[null,{"$error":"#REF!"}]
["Las notas que se acompañan forman parte integrante de estos estados."]

{"sheet":"Nota1","index":5,"n_rows":30,"n_cols":9,"rows_kept":30,"cut":false,"hidden":false,"merged":[[7,0,7,8],[10,9,10,11],[11,0,12,8],[28,0,28,6],[23,1,23,6],[25,0,25,8],[26,0,26,8],[17,1,17,6],[19,1,19,6],[20,1,20,6],[21,1,21,6],[22,1,22,6],[27,0,27,8]]}
[{"$f":"Indice!C1","v":"TECNOLOGIA DEL SUR S.A.E.(TECSUL S.A.E.)"},null,null,null,null,null,null,null,"BG"]
[]
[]
[]
[]
["NOTAS A LOS ESTADOS FINANCIEROS CORRESPONDIENTES AL PERIODO TERMINADO",null,null,null,null,null,null,{"$f":"IFERROR(IF(Indice!B6=\"\",\"Al 31 de marzo de año 2021\",\"Al \"&DAY(Indice!B6)&\" de \"&VLOOKUP(MONTH(Indice!B6),Indice!S:T,2,0)&\" de \"&YEAR(Indice!B6)),\"Al dia... de mes… de año 2XX2…\")","v":"Al 30 de Septiembre de 2022"}]
["Presentadas en forma comparativa con el periodo terminado ",null,null,null,null,{"$f":"IFERROR(\"Al \"&DAY([1]Indice!B6)&\" de \"&VLOOKUP(MONTH([2]Indice!B6),[2]Indice!S:T,2,0)&\" de \"&YEAR([2]Indice!B6-365),\"Al dia 31 del mes Diciembre de año 2020\")","v":"Al dia 31 del mes Diciembre de año 2020"}]
[" "]
[]
[]
["NOTA 1 – DESCRIPCIÓN DE LA NATURALEZA Y DEL NEGOCIO DE LA COMPAÑÍA"]
["Por el ejercicio correspondiente al período económico comprendido entre el 1 de enero de 2021 al 31 de diciembre de 2021, presentado en forma comparativa con el ejercicio anterior."]
[]
["Denominación : TECNOLOGIA DEL SUR S.A.E. (TECSUL S.A.E.)"]
["Domicilio Legal : Teniente Ayala Velazquez Nº373 - Asunción - Paraguay"]
[]
["Actividad principal :"]
["a.","Construcción de carreteras y vías férreas, puentes y tuneles."]
["Actividad secundaria:"]
["a.","Recoleccion de desechos inocuos."]
["b.","Comercio al por mayor de combustibles, minerales, productos siderúrgicos y químicos a cambio de una retribución o por contrata."]
["c.","Comercio al por menor de otros materiales de construcción tales como ladrillos, madera, equipo sanitario."]
["d.","Alquiler y arrendamiento de maquinaria para la construcción sin operario."]
["e.","Alquiler y arrendamiento de otros tipos de maquinaria, equipo y bienes materiales n.c.p. sin operario. "]
["Inscripciones:"]
["La empresa TECNOLOGIA DEL SUR SOCIEDAD ANONIMA EMISORA se encuentra inscripta en el Registro Unico de Contribuyentes con el Nº 80033539-2, y fue constituida inicialmente bajo la denominación de TECNOLOGIA DEL SUR S.A. el 14 de Setiembre de 2005 según Escritura Pública Nº 19 e inscripta en el Registro Público de Comercio en la seccion Contratos, bajo el Nº 936, Serie C  y el folio Nº 4481 y siguientes, Seccion  Contratos, de fecha 17 de Octubre de 2005. Luego, por Escritura Nº 4, de fecha 20 de Mayo de 2015 y pasada ante la escribana Ana Vilma Paredes Jara, obrante al folio 11 y siguientes, del protocolo de Contrato Comercial Seccion \"B\", fué modificado el estatuto social en su Art. 5 por aumento del capital social con emision de acciones, inscribiéndose en el Registro Público de Comercio, Registro de Contratos, bajo el Nº 201, serie E, folio 1956 y siguientes, el 5 de Junio de 2015."]
["Posteriormente, por Escritura Pública Nº 11 de fecha 20 de Julio de 2018, pasada ante la Esribana Pública Ana Vilma Paredes Jara, obrante al folio 17 y siguientes, del protocolo de Contrato Comercial Seccion \"B\", fue modificado el estatuto social en su Art. 5º por aumento del capital social de Gs. 10.000.000.000, a Gs. 21.000.000.000, con emisión de acciones, inscribiéndose en el registro Público de Comercio, en Matrícula Comercial Nº 14.995, Serie Comercial, bajo el Nº 01, al folio 01 y siguientes, en fecha 3 de Agosto de 2018. Finalmente, según Escritura Pública Nº 16, obrante al folio 59 y siguientes, del protocolo de Contrato Comercial Sección \"A\", de fecha 28 de Diciembre de 2018, pasada ante la Escribana Pública Ana Vilma Paredes Jara, fué modificado el Estatuto Social por conversión de S.A. a S.A.E. cuyo testimonio se tomó razón en la Dirección General de Registros Públicos, Registro Público de Comercio, Serie Comercial, anotado bajo el Nº 02, al folio 11-25, en fecha 07 de Febrero de 2019."]
["Finalmente por  Escritura Pública Nº 10 de fecha 07 de enero de 2022, pasada ante la Esribana Pública Ana Vilma Paredes Jara, obrante al folio 26 al 36 , del protocolo de Contrato Comercial Seccion \"A\", fue modificado el estatuto social en su Art. 5º por aumento del capital social de Gs.21 000 000 000, a Gs. 60.000.000.000, con emisión de acciones, inscribiéndose en el registro Público de Comercio, en Matrícula Comercial Nº 14.995, Serie Comercial, bajo el Nº 3, folio 26 al 36, en fecha 7 de enero de 2022"]
["Inscripción en la Comición Nacional de Valores:"]
["Fecha de vencimiento del estatuto Social: Año 2104"]

{"sheet":"Nota 2","index":6,"n_rows":82,"n_cols":9,"rows_kept":82,"cut":false,"hidden":false,"merged":[[50,9,50,10],[51,9,51,10],[62,9,62,10],[56,9,56,10],[57,9,57,10],[52,9,52,10],[53,9,53,10],[58,9,58,10],[59,9,59,10],[56,0,56,8],[57,0,57,8],[53,0,53,8],[54,0,54,8],[58,0,58,8],[55,0,55,8],[99,5,99,13],[68,9,68,10],[70,9,70,10],[63,0,63,8],[61,9,61,10],[64,0,64,8],[72,0,72,8],[75,0,75,8],[61,0,61,8],[62,0,62,8],[49,0,49,8],[52,0,52,8],[50,0,50,8],[82,0,82,8],[77,0,77,8],[78,0,78,8],[70,0,70,8],[66,0,66,8],[71,0,71,8],[74,0,74,8],[67,0,67,8],[80,0,80,8],[81,0,81,8],[60,0,60,8],[51,0,51,8],[59,0,59,8],[48,0,48,8],[44,0,44,8],[46,0,46,8],[15,0,15,8],[6,0,6,8],[14,0,14,8],[10,0,10,8],[11,0,11,8],[34,0,34,8],[37,0,37,8],[31,0,31,8],[40,0,40,8],[9,0,9,8],[13,0,13,8],[19,0,19,8],[37,9,37,17],[5,0,5,8],[39,0,39,8],[45,0,45,8],[18,0,18,8],[38,0,38,8],[35,0,35,8],[36,0,36,8],[33,0,33,8],[16,0,16,8],[17,0,17,8]]}
[{"$f":"Indice!C1","v":"TECNOLOGIA DEL SUR S.A.E.(TECSUL S.A.E.)"},null,null,null,null,null,null,null,"BG"]
[]
[]
[]
[]
["NOTA 2 - RESUMEN DE LAS PRINCIPALES POLÍTICAS CONTABLES"]
["Resumen de las principales políticas contables: a modo referencial, se incluyen las siguientes revelaciones de políticas contables en estados financieros de uso general que podrá ser tenida en consideración por las sociedades emisoras para la preparación de este capítulo de los estados financieros:"]
[]
[]
["a.   Bases de contabilización (Según NIF Bases de preparación de los Estados Financieros)"]
["Los estados financieros han sido preparados en base a la moneda oficial del Paraguay; el Guaraní, de acuerdo a criterios de valores históricos. Excepto por lo expresado en los párrafos c) moneda extranjera y j) valuación de los activos fijos, de esta misma nota, no se ha considerado los efectos que las variaciones en el poder adquisitivo de la moneda nacional pudieran tener sobre los rubros que componen la estructura patrimonial."]
["De haberse aplicado una corrección monetaria integral de los estados financieros, podrían haber surgido diferencias en la presentación de la situación patrimonial y financiera de la sociedad, en los resultados de sus operaciones y en los flujos de efectivo al ….., y por los ejercicios cerrados el, 31 de ………. de 20X2 y 20X1. Según el índice general de precios del consumo (IPC) publicado por el Banco Central del Paraguay, la inflación fue de 00,0% en el año 20X2 y 00,0% en el año 20X1. Obs: Datos a incorporar para cierre del ejercicio\n\n"]
[]
[]
["b.   Uso de estimaciones contables"]
["La preparación de los presentes estados financieros requiere que la Gerencia de la sociedad realice estimaciones y evaluaciones que afectan el monto de los activos y pasivos registrados y contingentes, como así también los ingresos y egresos registrados en el ejercicio.  Los resultados reales futuros pueden diferir de las estimaciones y evaluaciones realizadas a la fecha de preparación de los presentes estados financieros."]
[]
["c.   Moneda extranjera"]
["Los activos y pasivos en moneda extranjera se valúan a los tipos de cambio vigentes a la fecha de cierre del ejercicio."]
["Las diferencias de cambio originadas por fluctuaciones en los tipos de cambio producidos entre las fechas de concertación de las operaciones y su liquidación o valuación al cierre del ejercicio, son reconocidas en resultados."]
[]
[]
[null,null,2022,null,null,null,2021]
[null,"Indicar moneda","Simbología según ISO 4217","Miles de G.",null,"Indicar moneda","Simbología según ISO 4217","Miles de G."]
["Activos","Guaranì","PYG",{"$f":"+BG!F29/1000","v":215556067.52200001},null,"Guaranì","PYG",{"$f":"+BG!G29/1000","v":200676706.09799999}]
[]
["Pasivos","Guaranì","PYG",{"$f":"+BG!F45/1000","v":155721227.183},null,"Guaranì","PYG",{"$f":"+BG!G45/1000","v":142364546.51199999}]
[]
["Posición neta",null,null,{"$f":"+D25-D27","v":59834840.339000016},null,null,null,{"$f":"+H25-H27","v":58312159.585999995}]
[]
[]
["A la fecha de emisión de estos estados financieros, el tipo de cambio de la moneda extranjera DÓLAR no varió sustancialmente con respecto al vigente al 31 de Diciembre 2019 de tal forma que afecte significativamente los estados financieros y de resultados de la sociedad."]
[]
["d.   Efectivo y equivalentes de efectivo"]
["Se considerarán dentro del concepto de efectivo los saldos en efectivo, disponibilidades en cuentas bancarias y toda inversión de muy alta liquidez, con vencimiento originalmente pactado no superior a tres meses."]
[]
["e.   Inversiones"]
["Como variante a los proyectos publicos,la empresa empezo con un proyecto inmobiliario propio en la ciudad de Asuncion,con el afan de incursionar en este sector comercial, a fin a las actividades que desarrolla la empresa.El proyecto se encuentra en etapa de terminacion.Ver detalle de inversion  Nota 8."]
[]
["f. Previsión para cuentas de dudoso cobro/incobrables"]
["Las previsiones para cuentas de dudoso cobro se determinan al cierre de cada ejercicio, a partir del 1 de octubre la empresa adopto nueva politica, sobre la base del estudio de la cartera de créditos realizado con el objeto de determinar la porción no recuperable de las cuentas a cobrar. Las previsiones para cuentas de dudoso cobro se determinan mensualmente de acuerdo con el siguiente esquema de cálculo:"]
["Normal, de 01 a 90 dias de atraso."]
["En Gestión de Cobro, de 91 a 1095 dias de atraso."]
["En Gestión Judicial, de 1096 días de atraso en adelante."]
[]
["g. Inventarios"]
["Las existencias se valúan al menor entre su costo de adquisición o de producción y su valor neto de realización (NIF 12, párrafo 5). Para determinar el consumo (baja de inventarios) se aplicarán las fórmulas de costeo siguientes: PPP (Precio Promedio Ponderado)."]
[]
["h. Activos disponibles para la venta"]
["A la fecha de éste informe no existen operaciones de la especie constituidas por la empresa."]
["i. Previsiones para desvalorización y deterioro de inventarios"]
["A la fecha de este informe no fueon constituidas previsiones para desvalorizaciòn y deterioro de inventario."]
["j. Propiedades, planta y equipo"]
["Según Decreto 3182/19.La cuota de depreciación por desgaste, deterioro u obsolescencia se aplicará sobre el valor del activo fijo, incluido el biológico, de acuerdo con los años de vida útil menos el porcentaje de valor residual"]
["Conforme a la Resol.77/2020.Sera obligatorio a los efectos del presente impuesto,la determinacion del valor residual de los bienes del activo fijo,asi como la depreciacion de estos.El valor residual de un activo fijo sera el importe estimado que el contribuyente podria obtener por la disposicion de un activo al final de su vida util,despues de deducir los costos esperado en dicho momento"]
["Las depreciaciones se realizan a partir del año siguiente de la incorporación de un bien de uso."]
[]
["k. Intangibles"]
["Los intangibles se exponen a su costo incurrido menos las correspondientes amortizaciones acumuladas al cierre del año."]
["La composicion de la cuenta consiste en la adquicision de software y licencias de sistemas y son amortizados en cuotas fijas mensuales en un plazo de 5 años"]
["Los cargos diferidos corresponden a las mejoras en propiedad de terceros , son amortizadas en cuotas fijas en un plazo de 5 años."]
[]
["l. Goodwill"]
["Las estimaciones sobre los flujos de fondos netos son realizadas por la Gerencia sobre la base de las mejores estimaciones disponibles al momento de la preparación de los presentes estados financieros.  Tal como lo establece la NIF 13 emitida por el Consejo de Contadores Públicos del Paraguay, el Goodwill no se amortiza, sino se afecta a resultados por su deterioro según la NIF 18."]
["A la fecha de éste informe no existen operaciones de la especie constituidas por la empresa."]
[]
["m. Reconocimiento de ingresos y egresos"]
["Los ingresos  son reconocidos en función de su devengamiento."]
["Los gastos de administración, financieros y diversos fueron reconocidos en función al devengamiento de los mismos."]
[]
["n. Impuesto a la renta"]
["Grava todas las rentas,los beneficios o las ganancias de fuente paraguaya que provengan de todo tipo de actividades economicas,incluidas las agropecuarias,comerciales,industriales o de servicios,excluidas aquellas rentas gravadas por el IRP.Para calcular el impuesto,se basa en la utilidad contable antes de dicho concepto,ajustada por las partidas que las normativas vigentes incluyen o excluyen para la determinacion de la utilidad contable gravable,a la cual se le aplica una tasa del 10%."]
["Con la vigencia de la Ley 6380/19,cuando las utilidades fueren distribuidas,las mismas estaran alcanzadas por el impuesto a los Dividendos y a las Utilidades - IDU,a una tasas del 8% para los accionistas residentes y del 15 %  para los no residentes,a ser aplicados sobre el monto pagado o acreditado."]
[]
["o. Restricciones a la distribución de utilidades"]
["A la fecha de este informe, no existen restricciones a la distribución de utilidades."]
[]
["p. Derechos en Fideicomiso"]
["A la fecha de éste informe no existen operaciones de la especie constituidas por la empresa."]
[]
["q. Otros principios, prácticas y métodos"]
["A la fecha de éste informe no existen otros principios, pàcticas o mètodos seguidos por la empresa."]

{"sheet":"Nota 3","index":7,"n_rows":21,"n_cols":5,"rows_kept":21,"cut":false,"hidden":false,"merged":[]}
[{"$f":"Indice!C1","v":"TECNOLOGIA DEL SUR S.A.E.(TECSUL S.A.E.)"},null,null,null,"BG"]
["Obs.: Revelar situación en el caso de contar con disponibilidad restringida"]
[]
[]
[]
[]
["NOTA 3 - EFECTIVO Y EQUIVALENTE DE EFECTIVO"]
["En  guaranies"]
["La composición de la cuenta es la siguiente:"]
[]
["Concepto",null,2022,2021]
["Fondo Fijos Obras ",null,68455335,25526567]
["Fondo Fijos Administracion ",null,38337757,33869298]
["Bancos Locales - Moneda local Guaraníes",null,3091193352,4834354170]
["Bancos Locales - Moneda extranjera Dólares",null,1368118,43676514]
["Bancos Locales - Moneda extranjera otros",null,14517318,192089268]
["Bancos en el Extranjero - Moneda extranjera Dólares",null,0,0]
["Recaudacion a Depositar",null,276164695,263813633]
["Cheques diferidos a cobrar",null,1963936349,3380152957]
["Caja Moneda Extranjera Dolares",null,42628955,62966750]
["Total",null,{"$f":"SUM($C$12:C20)","v":5496601879},{"$f":"SUM(D12:D20)","v":8836449157}]

{"sheet":"Nota 4","index":8,"n_rows":18,"n_cols":4,"rows_kept":18,"cut":false,"hidden":false,"merged":[[3,0,3,2],[6,1,6,2]]}
[{"$f":"Indice!C1","v":"TECNOLOGIA DEL SUR S.A.E.(TECSUL S.A.E.)"},null,null,"BG"]
[]
["NO APLICABLE"]
["NOTA 4 - INVERSIONES TEMPORALES"]
[]
["La composición de la cuenta es la siguiente:"]
[null,"En  guaranies"]
["Concepto",2022,2021]
["Inversiones en Titulos del Sistema Financiero Local - Moneda Local Guaraníes",0,0]
["Inversiones en Titulos del Sistema Financiero Local - Moneda Extranjera Dólares",0,0]
["Inversiones en Titulos del Sistema Financiero Local - Moneda Extranjera otros",0,0]
["Inversiones en Mercado Bursatil Local - Moneda Local Guaraníes",0,0]
["Inversiones en Mercado Bursatil Local - Moneda Extranjera Dólares",0,0]
["Inversiones en Mercado Bursatil Extranjera - Moneda Extranjera Dólares",0,0]
["Inversiones en Mercado Bursatil Extranjera - Moneda Extranjera otros",0,0]
["Otras inversiones - Moneda Local Guaraníes",1551053468,1919884397]
["Otras inversiones - Moneda Extranjera Dólares",0,0]
["Total",{"$f":"SUM($B$9:B17)","v":1551053468},{"$f":"SUM($C$9:C17)","v":1919884397}]

{"sheet":"Nota 5","index":9,"n_rows":54,"n_cols":8,"rows_kept":54,"cut":false,"hidden":false,"merged":[[6,2,6,3],[30,2,30,3]]}
[{"$f":"Indice!C1","v":"TECNOLOGIA DEL SUR S.A.E.(TECSUL S.A.E.)"},null,null,null,null,"BG"]
["Detallar cartera vencida y no vencida por clientes locales, extranjeros y partes relacionadas"]
["Se indicarán en este rubro todos los créditos a favor de la empresa provenientes de las  ventas de Mercaderías y/o servicios (atendiendo a la actividades ordinarias de  la empresa), separando las ventas locales en moneda nacional y/o extranjera de las ventas fuera del país en moneda nacional  y/o extranjera"]
[]
["NOTA  5 – CUENTAS POR COBRAR COMERCIALES"]
["Las cuentas a cobrar comerciales a corto plazo se integran como sigue:"]
[null,null,"En  guaraníes"]
[null,null,2022,2021,null,"Composición de la cartera de créditos por ventas","2022-06-30"]
["Deudores por ventas locales","Moneda Local Guaraníes",37817889193,60148883475,null,"Situación","Monto","% Previsiones  sobre Cartera "]
["Deudores por ventas locales","Moneda Extranjera Dólares",0,0,null,"A  Total Cartera no Vencida",4647592386,0]
["Deudores por ventas locales","Moneda Extranjera otros",0,0,null,"B. Total Cartera Vencida",33170296807]
["Deudores por ventas en el exterior","Moneda Local Guaraníes",0,0,null,"Composición Cartera Vencida"]
["Deudores por ventas en el exterior","Moneda Extranjera Dólares",0,0,null,"Normal",0,0]
["Deudores por ventas en el exterior","Moneda Extranjera otros",0,0,null,"En Gestión de Cobro",0,0]
["Deudores - Entidad relacionada","Moneda Local Guaraníes",3603343903,454921428,null,"En Gestión de Cobro Judicial",0,0]
["Deudores - Entidad relacionada","Moneda Extranjera Dólares",0,0]
["Deudores - Entidad relacionada","Moneda Extranjera otros",0,0,null,"Total de la cartera de créditos (A+B)",{"$f":"G10+G11","v":37817889193}]
["Cheques adelantados recibidos de clientes","Moneda Local Guaraníes",0,0]
["Cheques adelantados recibidos de clientes","Moneda Extranjera Dólares",0,0,null,"(-) Total Previsiones",{"$f":"-((G10*H10)+(SUMPRODUCT(G13:G15,H13:H15)))","v":0}]
["Cheques adelantados recibidos de clientes","Moneda Extranjera otros",0,0]
["Cheques rechazados","Moneda Local Guaraníes",0,0,null,"TOTAL  NETO DE LA CARTERA DE CRÉDITOS",{"$f":"G17+G19","v":37817889193}]
["Cheques rechazados","Moneda Extranjera Dólares",0,0]
["Otros","Moneda Local Guaraníes",0,0,null,"Observaciones"]
["Otros","Moneda Extranjera Dólares",0,0,null,"Criterios de Clasificación utilizados","De","A"]
["Otros","Moneda Extranjera otros",0,0,null,"Normal",1,90]
["(Menos) Cesion de Derechos BBVA ",null,-12786257051,-24240742368,null,"En Gestión de Cobro",91,1095]
["Total",null,{"$f":"+SUM($C$9:C26)","v":28634976045},{"$f":"+SUM($D$9:D26)","v":36363062535},null,"En Gestión de Cobro Judicial",1096]
[]
[]
["Las cuentas a cobrar comerciales a largo plazo se integran como sigue:"]
[null,null,"En guaraníes"]
[null,null,2022,2021]
["Deudores por ventas locales","Moneda Local Guaraníes",0,0]
["Deudores por ventas locales","Moneda Extranjera Dólares",0,0]
["Deudores por ventas locales","Moneda Extranjera otros",0,0]
["Deudores por ventas en el exterior","Moneda Local Guaraníes",0,0]
["Deudores por ventas en el exterior","Moneda Extranjera Dólares",0,0]
["Deudores por ventas en el exterior","Moneda Extranjera otros",0,0]
["Deudores - Entidad relacionada","Moneda Local Guaraníes",0,0]
["Deudores - Entidad relacionada","Moneda Extranjera Dólares",0,0]
["Deudores - Entidad relacionada","Moneda Extranjera otros",0,0]
["Cheques adelantados recibidos de clientes","Moneda Local Guaraníes",0,0]
["Cheques adelantados recibidos de clientes","Moneda Extranjera Dólares",0,0]
["Cheques adelantados recibidos de clientes","Moneda Extranjera otros",0,0]
["Deudores en gestión judicial","Moneda Local Guaraníes",0,0]
["Deudores en gestión judicial","Moneda Extranjera Dólares",0,0]
["Deudores en gestión judicial","Moneda Extranjera otros",0,0]
["Cheques rechazados","Moneda Local Guaraníes",0,0]
["Cheques rechazados","Moneda Extranjera Dólares",0,0]
["Otros","Moneda Local Guaraníes",0,0]
["Otros","Moneda Extranjera Dólares",0,0]
["Otros","Moneda Extranjera otros",0,0]
["Menos Previsiones",null,0,0]
["Total",null,{"$f":"+SUM($C$33:C53)","v":0},{"$f":"+SUM($D$33:D53)","v":0}]

{"sheet":"Nota 6","index":10,"n_rows":42,"n_cols":7,"rows_kept":42,"cut":false,"hidden":false,"merged":[]}
[{"$f":"Indice!C1","v":"TECNOLOGIA DEL SUR S.A.E.(TECSUL S.A.E.)"},null,null,"BG"]
[]
[]
["NOTA 6 - OTROS CRÉDITOS"]
["En  guaranies"]
["El rubro de otros créditos se compone como sigue:"]
[]
["Corrientes",null,null,null,"No corrientes"]
[]
["Concepto",2022,2021,null,"Concepto",2022,2021]
["Anticipos a proveedores",906956383,908713744,null,"Garantía de Alquiler",0,0]
["Gastos pagados por adelantado",0,0,null,"I.V.A. Crédito fiscal",0,0]
["Anticipo Impuesto a la Renta",0,0,null,"Anticipos a proveedores ",0,0]
["Retención Impuesto a la Renta",2905915956,2680997426,null,"Intereses a Devengar-Prestamo",510192415,809411273]
["Retención Impuesto al Valor agregado",1345249733,0,null,"Intereses a Devengar-IVA ",90003530,330878927]
["Certificado a Facturar ",16230523398,6939491314,null,"Intereses a Devengar Proveedores ",366751752,1098368928]
["Costos de Obras en Ejecucion ",1040720157,0,null,"Intereses a Devengar Bursatiles GS.",8074691786,10374623294]
["Retenciones (FONDO DE GARANTIA)",12032908753,9239366572,null,"Intereses a Devengar Bursatiles USD",988248902,1315753194]
["IVA Crédito 10%",0,0,null,"Total",{"$f":"SUM(F11:F18)","v":10029888385},{"$f":"SUM(G11:G18)","v":13929035616}]
["Cuentas a Cobrar a Directores y Funcionarios",398123605,107123605]
["Prestamos a Terceros ",26600958,469917297]
["Anticipo compras de Inmuebles",2022636364,2127900000]
["Participaciones Consorciales ",8255000000,8255000000]
["Garantía de Alquiler",7476190,7476190]
["Intereses a Devengar-Prestamo",2289371623,1043688421]
["Intereses a Devengar-IVA ",328845679,323273461]
["Intereses a Devengar-IPS",0,6690991]
["Intereses a Devengar-Proveedores",1359568072,908976554]
["Otras cuentas por cobrar",4275975000,1627124820]
["Costos de Obras en Ejecucion ",0,0]
["Intereses varios a cobrar",3325941640,1502491693]
["Anticipo a contratista",0,319569000]
["Seguros a Devengar",904004884,903497546]
["Anticipo compras  ",162996244,0]
["Deudores varios",50000000,0]
["IVA pago no Aplicados",24702892,24702892]
["Anticipo a personal superior Directores",640259312,527262610]
["Anticipo a Rendir",1766234990,3454286099]
["Intereses a Devengar Bursatiles GS.",3066575344,3066575344]
["Intereses a Devengar Bursatiles USD",436673040,437868934]
["Anticipo extraordinario de Dividendos",1304733522,946301222]
["Total",{"$f":"SUM($B$11:B41)","v":65107993739},{"$f":"SUM(C11:C41)","v":45828295735}]

{"sheet":"Nota 7","index":11,"n_rows":16,"n_cols":4,"rows_kept":16,"cut":false,"hidden":false,"merged":[[6,1,6,2],[5,0,5,6],[3,0,3,2]]}
[{"$f":"Indice!C1","v":"TECNOLOGIA DEL SUR S.A.E.(TECSUL S.A.E.)"},null,null,"BG"]
[]
[]
["NOTA 7 – INVENTARIOS"]
[]
["Los bienes de cambio están compuestos de la siguiente manera:"]
[null,"En  guaranies"]
["Concepto",2022,2021]
["Mercaderías-Piedra ",4875226650,0]
["Productos terminados",768062444,0]
["Productos en proceso",0,0]
["Materia prima",0,0]
["Materiales,suministros y Repuestos ",18813119194,15451263100]
["Importaciones en curso",673843000,673843000]
["(-) Previsión para desvalorización y deterioro de inventario",0,0]
["Total ",{"$f":"SUM(B9:B15)","v":25130251288},{"$f":"SUM(C9:C15)","v":16125106100}]

{"sheet":"Nota 8","index":12,"n_rows":18,"n_cols":12,"rows_kept":18,"cut":false,"hidden":false,"merged":[[3,0,3,5]]}
[{"$f":"Indice!C1","v":"TECNOLOGIA DEL SUR S.A.E.(TECSUL S.A.E.)"},null,null,"BG"]
[]
[]
["Nota 8 - INVERSIONES EN ASOCIADAS"]
["En  guaraníes"]
["Las inversiones en sociedades donde no se ejerce control se describen a continuación"]
["Periodo",2022,2021]
["Total Inversión",1943525341,1913843256,"<-- Indicar Monto"]
[]
["a) Datos sobre la sociedad:",null,null,null,null,null,"a) Datos sobre la inversión:"]
[null,null,null,2021]
["Nombre de Sociedad","RUC","Cantidad de acciones","Total Patrimonio neto","Total del resultado",null,"Cantidad de acciones","Participación sobre los votos (%)","Total Inversión ( Gs)","Participación sobre el Patrimonio Neto (%)","Total valuación patrimonial proporcional","Resultado sobre inversiones"]
["Angostura Tecnologia S.A.","80085671-6",46,9118627829,-3461327358,null,46,0.12,460000000,0.12,{"$f":"J13*D13","v":1094235339.48},{"$f":"J13*E13","v":-415359282.95999998}]
["A porte de capital a Integrar Antec S.A.","80085671-6","Aporte a integrar",null,null,null,"Aporte a integrar",0.12,520453931,0.12,{"$f":"J14*D14","v":0},0]
["Consorcio Emprendimientos del Sur","80050333-3","Aporte Consorcial ",3918121030,3735082145,null,"Aporte Consorcial","50% de participacion",1009109878,0.5,{"$f":"J15*D15","v":1959060515},{"$f":"J15*E15","v":1867541072.5}]
["Consorcio Obras Industriales","80087173-1","Aporte Consorcial ",602091968,600761320,null,"Aporte Consorcial","33,4% de participacion",151515000,0.33400000000000002,{"$f":"J16*D16","v":201098717.31200001},200654280.88000003]
["Radix S.A.","80117775-8",50,null,null,null,null,0.5,1353500000,0.5,{"$f":"J17*D17","v":0},0]
[null,null,null,null,null,null,null,null,null,null,0,0]

{"sheet":"Nota 9","index":13,"n_rows":35,"n_cols":13,"rows_kept":35,"cut":false,"hidden":false,"merged":[[11,0,11,12]]}
[{"$f":"Indice!C1","v":"TECNOLOGIA DEL SUR S.A.E.(TECSUL S.A.E.)"},null,null,null,null,null,null,null,null,null,null,"BG"]
[]
[]
[]
["Obs.:"]
["Incluir aclaraciones en los siguientes casos:"]
["1.      Cuando los bienes de uso tienen alguna restricción sobre su utilización, como por ejemplo cuando están garantizando obligaciones. En su caso también hacer referencia a la nota correspondiente."]
["2.      Cuando exista alguna previsión por desvalorización (“deterioro”), detallando la evolución de la misma en el transcurso del año."]
["3.      Si se están capitalizando intereses al costo de bienes de uso. En su caso deberá aclararse la tasa utilizada para la capitalización."]
["Ver adicionalmente Norma de Información Financiera N° 11 Propiedades, planta y equipo"]
[]
["NOTA 9 - PROPIEDADES, PLANTA Y EQUIPO - NETO"]
["En  guaraníes",null,null,null,null,null,null,null,null,-1]
[]
[null,"Costo histórico revaluado al inicio del año","Adquisiciones","Bajas","Revalúo del año","Valor de origen revaluado al final del año","Depreciación acumulada revaluada al inicio del año","Depreciación del año","Bajas de depreciaciones acumuladas","Revalúo depreciación acumulada del año","Depreciación acumulada revaluada al final del año","Valor neto contable"]
[null,null,null,null,null,null,null,null,null,null,null,2022,2021]
["Instalaciones",525483606,{"$f":"792983094-37954545","v":755028549},0,0,{"$f":"+B17+C17-D17+E17","v":1280512155},51221469,39354435,0,0,{"$f":"+H17-I17+J17","v":39354435},{"$f":"+F17-K17","v":1241157720},{"$f":"+B17","v":525483606}]
["Rodados",3757695042,1736574331,0,0,5494269373,3052412334,783960507,0,0,{"$f":"+G18+H18-I18","v":3836372841},{"$f":"+F18-H18+I18","v":4710308866},3757695042]
["Equipos de Informatica",212925850,55964545,0,0,268890395,331917034,85329747,0,0,{"$f":"+G19+H19-I19","v":417246781},{"$f":"+F19-H19","v":183560648},212925850]
["Muebles y útiles",874234418,37718080,17868080,0,894084418,352108655,142516071,0,0,{"$f":"+G20+H20-I20","v":494624726},751568347,874234418]
["Equipos de comunicación",4174303,3381819,0,0,7556122,1923476,659502,0,0,2582978,{"$f":"+F21-H21","v":6896620},4174303]
["Maquinarias y Equipos",64151708062,1177600042,0,0,65329308104,21330367841,5280719562,0,0,{"$f":"+G22+H22-I22","v":26611087403},60048588542,64151708062]
["Gastos de Organización ",0,2500000000,0,0,2500000000,0,0,0,0,0,2500000000,0]
["Equipos fotograficos",11884368,0,0,0,11884368,10742880,1474992,0,0,12217872,10409376,11884368]
["Carteles y Letreros",676391,0,0,0,676391,856225,102951,0,0,959176,573440,676391]
["Inmuebles",4493531649,2163248000,0,0,6656779649,0,0,0,0,0,6656779649,4493531649]
["Motobomba",2551349,14800797,0,0,17352146,6241817,322596,0,0,6564413,17029550,2551349]
["Equipos de Oficina ",92767186,64315454,0,0,157082640,2422408,11513592,0,0,13936000,145569048,92767186]
["Avioneta",2170115786,0,0,0,2170115786,188705720,144674388,0,0,333380108,2025441398,2170115786]
["Herramientas",9122291,0,0,0,9122291,1061345,1394694,0,0,2456039,7727597,9122291]
["Mejoras en propiedad de Terceros",311568068,0,0,0,311568068,189166327,33382296,0,0,{"$f":"+G31+H31-I31","v":222548623},{"$f":"+F31-H31","v":278185772},311568068]
["Mejoras en inmuebles propios",212256103,0,0,0,{"$f":"+B32","v":212256103},0,15919209,0,0,{"$f":"+G32+H32-I32","v":15919209},{"$f":"+F32-H32","v":196336894},212256103]
["Equipos de Topografias ",0,8871055,null,null,{"$f":"+B33","v":0},0,null,0,0,0,8871055,0]
["Depreciaciones Acumuladas de AF del periodo 2018 al 2016",-1284070619,0,0,0,0,1284070619,0,0,0,1284070619,-1284070619,-1284070619]
["Totales",{"$f":"SUM(B17:B34)","v":75546623853},{"$f":"SUM(C17:C34)","v":8517502672},{"$f":"SUM(D17:D34)","v":17868080},0,{"$f":"SUM(F17:F34)","v":85321458009},{"$f":"SUM(G17:G34)","v":26803218150},{"$f":"SUM(H17:H34)","v":6541324542},{"$f":"SUM(I17:I34)","v":0},0,{"$f":"SUM(K17:K34)","v":33293321223},{"$f":"SUM($L$17:L34)","v":77504933903},{"$f":"SUM($M$17:M34)","v":75546623853}]

{"sheet":"Nota 10","index":14,"n_rows":19,"n_cols":3,"rows_kept":19,"cut":false,"hidden":false,"merged":[[3,70,3,75],[3,76,3,81],[3,82,3,87],[3,88,3,93],[3,94,3,99],[3,100,3,105],[3,34,3,39],[3,40,3,45],[3,46,3,51],[3,52,3,57],[3,58,3,63],[3,64,3,69],[3,4,3,9],[3,10,3,15],[3,16,3,21],[3,22,3,27],[3,28,3,33],[3,286,3,291],[3,292,3,297],[3,298,3,303],[3,304,3,309],[3,310,3,315],[3,316,3,321],[3,250,3,255],[3,256,3,261],[3,262,3,267],[3,268,3,273],[3,274,3,279],[3,280,3,285],[3,214,3,219],[3,220,3,225],[3,226,3,231],[3,232,3,237],[3,238,3,243],[3,244,3,249],[3,178,3,183],[3,184,3,189],[3,190,3,195],[3,196,3,201],[3,202,3,207],[3,208,3,213],[3,142,3,147],[3,148,3,153],[3,154,3,159],[3,160,3,165],[3,166,3,171],[3,172,3,177],[3,106,3,111],[3,112,3,117],[3,118,3,123],[3,124,3,129],[3,130,3,135],[3,136,3,141],[3,502,3,507],[3,508,3,513],[3,514,3,519],[3,520,3,525],[3,526,3,531],[3,532,3,537],[3,466,3,471],[3,472,3,477],[3,478,3,483],[3,484,3,489],[3,490,3,495],[3,496,3,501],[3,430,3,435],[3,436,3,441],[3,442,3,447],[3,448,3,453],[3,454,3,459],[3,460,3,465],[3,394,3,399],[3,400,3,405],[3,406,3,411],[3,412,3,417],[3,418,3,423],[3,424,3,429],[3,358,3,363],[3,364,3,369],[3,370,3,375],[3,376,3,381],[3,382,3,387],[3,388,3,393],[3,322,3,327],[3,328,3,333],[3,334,3,339],[3,340,3,345],[3,346,3,351],[3,352,3,357],[3,718,3,723],[3,724,3,729],[3,730,3,735],[3,736,3,741],[3,742,3,747],[3,748,3,753],[3,682,3,687],[3,688,3,693],[3,694,3,699],[3,700,3,705],[3,706,3,711],[3,712,3,717],[3,646,3,651],[3,652,3,657],[3,658,3,663],[3,664,3,669],[3,670,3,675],[3,676,3,681],[3,610,3,615],[3,616,3,621],[3,622,3,627],[3,628,3,633],[3,634,3,639],[3,640,3,645],[3,574,3,579],[3,580,3,585],[3,586,3,591],[3,592,3,597],[3,598,3,603],[3,604,3,609],[3,538,3,543],[3,544,3,549],[3,550,3,555],[3,556,3,561],[3,562,3,567],[3,568,3,573],[3,934,3,939],[3,940,3,945],[3,946,3,951],[3,952,3,957],[3,958,3,963],[3,964,3,969],[3,898,3,903],[3,904,3,909],[3,910,3,915],[3,916,3,921],[3,922,3,927],[3,928,3,933],[3,862,3,867],[3,868,3,873],[3,874,3,879],[3,880,3,885],[3,886,3,891],[3,892,3,897],[3,826,3,831],[3,832,3,837],[3,838,3,843],[3,844,3,849],[3,850,3,855],[3,856,3,861],[3,790,3,795],[3,796,3,801],[3,802,3,807],[3,808,3,813],[3,814,3,819],[3,820,3,825],[3,754,3,759],[3,760,3,765],[3,766,3,771],[3,772,3,777],[3,778,3,783],[3,784,3,789],[3,1150,3,1155],[3,1156,3,1161],[3,1162,3,1167],[3,1168,3,1173],[3,1174,3,1179],[3,1180,3,1185],[3,1114,3,1119],[3,1120,3,1125],[3,1126,3,1131],[3,1132,3,1137],[3,1138,3,1143],[3,1144,3,1149],[3,1078,3,1083],[3,1084,3,1089],[3,1090,3,1095],[3,1096,3,1101],[3,1102,3,1107],[3,1108,3,1113],[3,1042,3,1047],[3,1048,3,1053],[3,1054,3,1059],[3,1060,3,1065],[3,1066,3,1071],[3,1072,3,1077],[3,1006,3,1011],[3,1012,3,1017],[3,1018,3,1023],[3,1024,3,1029],[3,1030,3,1035],[3,1036,3,1041],[3,970,3,975],[3,976,3,981],[3,982,3,987],[3,988,3,993],[3,994,3,999],[3,1000,3,1005],[3,1366,3,1371],[3,1372,3,1377],[3,1378,3,1383],[3,1384,3,1389],[3,1390,3,1395],[3,1396,3,1401],[3,1330,3,1335],[3,1336,3,1341],[3,1342,3,1347],[3,1348,3,1353],[3,1354,3,1359],[3,1360,3,1365],[3,1294,3,1299],[3,1300,3,1305],[3,1306,3,1311],[3,1312,3,1317],[3,1318,3,1323],[3,1324,3,1329],[3,1258,3,1263],[3,1264,3,1269],[3,1270,3,1275],[3,1276,3,1281],[3,1282,3,1287],[3,1288,3,1293],[3,1222,3,1227],[3,1228,3,1233],[3,1234,3,1239],[3,1240,3,1245],[3,1246,3,1251],[3,1252,3,1257],[3,1186,3,1191],[3,1192,3,1197],[3,1198,3,1203],[3,1204,3,1209],[3,1210,3,1215],[3,1216,3,1221],[3,1582,3,1587],[3,1588,3,1593],[3,1594,3,1599],[3,1600,3,1605],[3,1606,3,1611],[3,1612,3,1617],[3,1546,3,1551],[3,1552,3,1557],[3,1558,3,1563],[3,1564,3,1569],[3,1570,3,1575],[3,1576,3,1581],[3,1510,3,1515],[3,1516,3,1521],[3,1522,3,1527],[3,1528,3,1533],[3,1534,3,1539],[3,1540,3,1545],[3,1474,3,1479],[3,1480,3,1485],[3,1486,3,1491],[3,1492,3,1497],[3,1498,3,1503],[3,1504,3,1509],[3,1438,3,1443],[3,1444,3,1449],[3,1450,3,1455],[3,1456,3,1461],[3,1462,3,1467],[3,1468,3,1473],[3,1402,3,1407],[3,1408,3,1413],[3,1414,3,1419],[3,1420,3,1425],[3,1426,3,1431],[3,1432,3,1437],[3,1798,3,1803],[3,1804,3,1809],[3,1810,3,1815],[3,1816,3,1821],[3,1822,3,1827],[3,1828,3,1833],[3,1762,3,1767],[3,1768,3,1773],[3,1774,3,1779],[3,1780,3,1785],[3,1786,3,1791],[3,1792,3,1797],[3,1726,3,1731],[3,1732,3,1737],[3,1738,3,1743],[3,1744,3,1749],[3,1750,3,1755],[3,1756,3,1761],[3,1690,3,1695],[3,1696,3,1701],[3,1702,3,1707],[3,1708,3,1713],[3,1714,3,1719],[3,1720,3,1725],[3,1654,3,1659],[3,1660,3,1665],[3,1666,3,1671],[3,1672,3,1677],[3,1678,3,1683],[3,1684,3,1689],[3,1618,3,1623],[3,1624,3,1629],[3,1630,3,1635],[3,1636,3,1641],[3,1642,3,1647],[3,1648,3,1653],[3,2014,3,2019],[3,2020,3,2025],[3,2026,3,2031],[3,2032,3,2037],[3,2038,3,2043],[3,2044,3,2049],[3,1978,3,1983],[3,1984,3,1989],[3,1990,3,1995],[3,1996,3,2001],[3,2002,3,2007],[3,2008,3,2013],[3,1942,3,1947],[3,1948,3,1953],[3,1954,3,1959],[3,1960,3,1965],[3,1966,3,1971],[3,1972,3,1977],[3,1906,3,1911],[3,1912,3,1917],[3,1918,3,1923],[3,1924,3,1929],[3,1930,3,1935],[3,1936,3,1941],[3,1870,3,1875],[3,1876,3,1881],[3,1882,3,1887],[3,1888,3,1893],[3,1894,3,1899],[3,1900,3,1905],[3,1834,3,1839],[3,1840,3,1845],[3,1846,3,1851],[3,1852,3,1857],[3,1858,3,1863],[3,1864,3,1869],[3,2230,3,2235],[3,2236,3,2241],[3,2242,3,2247],[3,2248,3,2253],[3,2254,3,2259],[3,2260,3,2265],[3,2194,3,2199],[3,2200,3,2205],[3,2206,3,2211],[3,2212,3,2217],[3,2218,3,2223],[3,2224,3,2229],[3,2158,3,2163],[3,2164,3,2169],[3,2170,3,2175],[3,2176,3,2181],[3,2182,3,2187],[3,2188,3,2193],[3,2122,3,2127],[3,2128,3,2133],[3,2134,3,2139],[3,2140,3,2145],[3,2146,3,2151],[3,2152,3,2157],[3,2086,3,2091],[3,2092,3,2097],[3,2098,3,2103],[3,2104,3,2109],[3,2110,3,2115],[3,2116,3,2121],[3,2050,3,2055],[3,2056,3,2061],[3,2062,3,2067],[3,2068,3,2073],[3,2074,3,2079],[3,2080,3,2085],[3,2446,3,2451],[3,2452,3,2457],[3,2458,3,2463],[3,2464,3,2469],[3,2470,3,2475],[3,2476,3,2481],[3,2410,3,2415],[3,2416,3,2421],[3,2422,3,2427],[3,2428,3,2433],[3,2434,3,2439],[3,2440,3,2445],[3,2374,3,2379],[3,2380,3,2385],[3,2386,3,2391],[3,2392,3,2397],[3,2398,3,2403],[3,2404,3,2409],[3,2338,3,2343],[3,2344,3,2349],[3,2350,3,2355],[3,2356,3,2361],[3,2362,3,2367],[3,2368,3,2373],[3,2302,3,2307],[3,2308,3,2313],[3,2314,3,2319],[3,2320,3,2325],[3,2326,3,2331],[3,2332,3,2337],[3,2266,3,2271],[3,2272,3,2277],[3,2278,3,2283],[3,2284,3,2289],[3,2290,3,2295],[3,2296,3,2301],[3,2662,3,2667],[3,2668,3,2673],[3,2674,3,2679],[3,2680,3,2685],[3,2686,3,2691],[3,2692,3,2697],[3,2626,3,2631],[3,2632,3,2637],[3,2638,3,2643],[3,2644,3,2649],[3,2650,3,2655],[3,2656,3,2661],[3,2590,3,2595],[3,2596,3,2601],[3,2602,3,2607],[3,2608,3,2613],[3,2614,3,2619],[3,2620,3,2625],[3,2554,3,2559],[3,2560,3,2565],[3,2566,3,2571],[3,2572,3,2577],[3,2578,3,2583],[3,2584,3,2589],[3,2518,3,2523],[3,2524,3,2529],[3,2530,3,2535],[3,2536,3,2541],[3,2542,3,2547],[3,2548,3,2553],[3,2482,3,2487],[3,2488,3,2493],[3,2494,3,2499],[3,2500,3,2505],[3,2506,3,2511],[3,2512,3,2517],[3,2878,3,2883],[3,2884,3,2889],[3,2890,3,2895],[3,2896,3,2901],[3,2902,3,2907],[3,2908,3,2913],[3,2842,3,2847],[3,2848,3,2853],[3,2854,3,2859],[3,2860,3,2865],[3,2866,3,2871],[3,2872,3,2877],[3,2806,3,2811],[3,2812,3,2817],[3,2818,3,2823],[3,2824,3,2829],[3,2830,3,2835],[3,2836,3,2841],[3,2770,3,2775],[3,2776,3,2781],[3,2782,3,2787],[3,2788,3,2793],[3,2794,3,2799],[3,2800,3,2805],[3,2734,3,2739],[3,2740,3,2745],[3,2746,3,2751],[3,2752,3,2757],[3,2758,3,2763],[3,2764,3,2769],[3,2698,3,2703],[3,2704,3,2709],[3,2710,3,2715],[3,2716,3,2721],[3,2722,3,2727],[3,2728,3,2733],[3,3094,3,3099],[3,3100,3,3105],[3,3106,3,3111],[3,3112,3,3117],[3,3118,3,3123],[3,3124,3,3129],[3,3058,3,3063],[3,3064,3,3069],[3,3070,3,3075],[3,3076,3,3081],[3,3082,3,3087],[3,3088,3,3093],[3,3022,3,3027],[3,3028,3,3033],[3,3034,3,3039],[3,3040,3,3045],[3,3046,3,3051],[3,3052,3,3057],[3,2986,3,2991],[3,2992,3,2997],[3,2998,3,3003],[3,3004,3,3009],[3,3010,3,3015],[3,3016,3,3021],[3,2950,3,2955],[3,2956,3,2961],[3,2962,3,2967],[3,2968,3,2973],[3,2974,3,2979],[3,2980,3,2985],[3,2914,3,2919],[3,2920,3,2925],[3,2926,3,2931],[3,2932,3,2937],[3,2938,3,2943],[3,2944,3,2949],[3,3310,3,3315],[3,3316,3,3321],[3,3322,3,3327],[3,3328,3,3333],[3,3334,3,3339],[3,3340,3,3345],[3,3274,3,3279],[3,3280,3,3285],[3,3286,3,3291],[3,3292,3,3297],[3,3298,3,3303],[3,3304,3,3309],[3,3238,3,3243],[3,3244,3,3249],[3,3250,3,3255],[3,3256,3,3261],[3,3262,3,3267],[3,3268,3,3273],[3,3202,3,3207],[3,3208,3,3213],[3,3214,3,3219],[3,3220,3,3225],[3,3226,3,3231],[3,3232,3,3237],[3,3166,3,3171],[3,3172,3,3177],[3,3178,3,3183],[3,3184,3,3189],[3,3190,3,3195],[3,3196,3,3201],[3,3130,3,3135],[3,3136,3,3141],[3,3142,3,3147],[3,3148,3,3153],[3,3154,3,3159],[3,3160,3,3165],[3,3526,3,3531],[3,3532,3,3537],[3,3538,3,3543],[3,3544,3,3549],[3,3550,3,3555],[3,3556,3,3561],[3,3490,3,3495],[3,3496,3,3501],[3,3502,3,3507],[3,3508,3,3513],[3,3514,3,3519],[3,3520,3,3525],[3,3454,3,3459],[3,3460,3,3465],[3,3466,3,3471],[3,3472,3,3477],[3,3478,3,3483],[3,3484,3,3489],[3,3418,3,3423],[3,3424,3,3429],[3,3430,3,3435],[3,3436,3,3441],[3,3442,3,3447],[3,3448,3,3453],[3,3382,3,3387],[3,3388,3,3393],[3,3394,3,3399],[3,3400,3,3405],[3,3406,3,3411],[3,3412,3,3417],[3,3346,3,3351],[3,3352,3,3357],[3,3358,3,3363],[3,3364,3,3369],[3,3370,3,3375],[3,3376,3,3381],[3,3742,3,3747],[3,3748,3,3753],[3,3754,3,3759],[3,3760,3,3765],[3,3766,3,3771],[3,3772,3,3777],[3,3706,3,3711],[3,3712,3,3717],[3,3718,3,3723],[3,3724,3,3729],[3,3730,3,3735],[3,3736,3,3741],[3,3670,3,3675],[3,3676,3,3681],[3,3682,3,3687],[3,3688,3,3693],[3,3694,3,3699],[3,3700,3,3705],[3,3634,3,3639],[3,3640,3,3645],[3,3646,3,3651],[3,3652,3,3657],[3,3658,3,3663],[3,3664,3,3669],[3,3598,3,3603],[3,3604,3,3609],[3,3610,3,3615],[3,3616,3,3621],[3,3622,3,3627],[3,3628,3,3633],[3,3562,3,3567],[3,3568,3,3573],[3,3574,3,3579],[3,3580,3,3585],[3,3586,3,3591],[3,3592,3,3597],[3,3958,3,3963],[3,3964,3,3969],[3,3970,3,3975],[3,3976,3,3981],[3,3982,3,3987],[3,3988,3,3993],[3,3922,3,3927],[3,3928,3,3933],[3,3934,3,3939],[3,3940,3,3945],[3,3946,3,3951],[3,3952,3,3957],[3,3886,3,3891],[3,3892,3,3897],[3,3898,3,3903],[3,3904,3,3909],[3,3910,3,3915],[3,3916,3,3921],[3,3850,3,3855],[3,3856,3,3861],[3,3862,3,3867],[3,3868,3,3873],[3,3874,3,3879],[3,3880,3,3885],[3,3814,3,3819],[3,3820,3,3825],[3,3826,3,3831],[3,3832,3,3837],[3,3838,3,3843],[3,3844,3,3849],[3,3778,3,3783],[3,3784,3,3789],[3,3790,3,3795],[3,3796,3,3801],[3,3802,3,3807],[3,3808,3,3813],[3,4174,3,4179],[3,4180,3,4185],[3,4186,3,4191],[3,4192,3,4197],[3,4198,3,4203],[3,4204,3,4209],[3,4138,3,4143],[3,4144,3,4149],[3,4150,3,4155],[3,4156,3,4161],[3,4162,3,4167],[3,4168,3,4173],[3,4102,3,4107],[3,4108,3,4113],[3,4114,3,4119],[3,4120,3,4125],[3,4126,3,4131],[3,4132,3,4137],[3,4066,3,4071],[3,4072,3,4077],[3,4078,3,4083],[3,4084,3,4089],[3,4090,3,4095],[3,4096,3,4101],[3,4030,3,4035],[3,4036,3,4041],[3,4042,3,4047],[3,4048,3,4053],[3,4054,3,4059],[3,4060,3,4065],[3,3994,3,3999],[3,4000,3,4005],[3,4006,3,4011],[3,4012,3,4017],[3,4018,3,4023],[3,4024,3,4029],[3,4390,3,4395],[3,4396,3,4401],[3,4402,3,4407],[3,4408,3,4413],[3,4414,3,4419],[3,4420,3,4425],[3,4354,3,4359],[3,4360,3,4365],[3,4366,3,4371],[3,4372,3,4377],[3,4378,3,4383],[3,4384,3,4389],[3,4318,3,4323],[3,4324,3,4329],[3,4330,3,4335],[3,4336,3,4341],[3,4342,3,4347],[3,4348,3,4353],[3,4282,3,4287],[3,4288,3,4293],[3,4294,3,4299],[3,4300,3,4305],[3,4306,3,4311],[3,4312,3,4317],[3,4246,3,4251],[3,4252,3,4257],[3,4258,3,4263],[3,4264,3,4269],[3,4270,3,4275],[3,4276,3,4281],[3,4210,3,4215],[3,4216,3,4221],[3,4222,3,4227],[3,4228,3,4233],[3,4234,3,4239],[3,4240,3,4245],[3,4606,3,4611],[3,4612,3,4617],[3,4618,3,4623],[3,4624,3,4629],[3,4630,3,4635],[3,4636,3,4641],[3,4570,3,4575],[3,4576,3,4581],[3,4582,3,4587],[3,4588,3,4593],[3,4594,3,4599],[3,4600,3,4605],[3,4534,3,4539],[3,4540,3,4545],[3,4546,3,4551],[3,4552,3,4557],[3,4558,3,4563],[3,4564,3,4569],[3,4498,3,4503],[3,4504,3,4509],[3,4510,3,4515],[3,4516,3,4521],[3,4522,3,4527],[3,4528,3,4533],[3,4462,3,4467],[3,4468,3,4473],[3,4474,3,4479],[3,4480,3,4485],[3,4486,3,4491],[3,4492,3,4497],[3,4426,3,4431],[3,4432,3,4437],[3,4438,3,4443],[3,4444,3,4449],[3,4450,3,4455],[3,4456,3,4461],[3,4822,3,4827],[3,4828,3,4833],[3,4834,3,4839],[3,4840,3,4845],[3,4846,3,4851],[3,4852,3,4857],[3,4786,3,4791],[3,4792,3,4797],[3,4798,3,4803],[3,4804,3,4809],[3,4810,3,4815],[3,4816,3,4821],[3,4750,3,4755],[3,4756,3,4761],[3,4762,3,4767],[3,4768,3,4773],[3,4774,3,4779],[3,4780,3,4785],[3,4714,3,4719],[3,4720,3,4725],[3,4726,3,4731],[3,4732,3,4737],[3,4738,3,4743],[3,4744,3,4749],[3,4678,3,4683],[3,4684,3,4689],[3,4690,3,4695],[3,4696,3,4701],[3,4702,3,4707],[3,4708,3,4713],[3,4642,3,4647],[3,4648,3,4653],[3,4654,3,4659],[3,4660,3,4665],[3,4666,3,4671],[3,4672,3,4677],[3,5038,3,5043],[3,5044,3,5049],[3,5050,3,5055],[3,5056,3,5061],[3,5062,3,5067],[3,5068,3,5073],[3,5002,3,5007],[3,5008,3,5013],[3,5014,3,5019],[3,5020,3,5025],[3,5026,3,5031],[3,5032,3,5037],[3,4966,3,4971],[3,4972,3,4977],[3,4978,3,4983],[3,4984,3,4989],[3,4990,3,4995],[3,4996,3,5001],[3,4930,3,4935],[3,4936,3,4941],[3,4942,3,4947],[3,4948,3,4953],[3,4954,3,4959],[3,4960,3,4965],[3,4894,3,4899],[3,4900,3,4905],[3,4906,3,4911],[3,4912,3,4917],[3,4918,3,4923],[3,4924,3,4929],[3,4858,3,4863],[3,4864,3,4869],[3,4870,3,4875],[3,4876,3,4881],[3,4882,3,4887],[3,4888,3,4893],[3,5254,3,5259],[3,5260,3,5265],[3,5266,3,5271],[3,5272,3,5277],[3,5278,3,5283],[3,5284,3,5289],[3,5218,3,5223],[3,5224,3,5229],[3,5230,3,5235],[3,5236,3,5241],[3,5242,3,5247],[3,5248,3,5253],[3,5182,3,5187],[3,5188,3,5193],[3,5194,3,5199],[3,5200,3,5205],[3,5206,3,5211],[3,5212,3,5217],[3,5146,3,5151],[3,5152,3,5157],[3,5158,3,5163],[3,5164,3,5169],[3,5170,3,5175],[3,5176,3,5181],[3,5110,3,5115],[3,5116,3,5121],[3,5122,3,5127],[3,5128,3,5133],[3,5134,3,5139],[3,5140,3,5145],[3,5074,3,5079],[3,5080,3,5085],[3,5086,3,5091],[3,5092,3,5097],[3,5098,3,5103],[3,5104,3,5109],[3,5470,3,5475],[3,5476,3,5481],[3,5482,3,5487],[3,5488,3,5493],[3,5494,3,5499],[3,5500,3,5505],[3,5434,3,5439],[3,5440,3,5445],[3,5446,3,5451],[3,5452,3,5457],[3,5458,3,5463],[3,5464,3,5469],[3,5398,3,5403],[3,5404,3,5409],[3,5410,3,5415],[3,5416,3,5421],[3,5422,3,5427],[3,5428,3,5433],[3,5362,3,5367],[3,5368,3,5373],[3,5374,3,5379],[3,5380,3,5385],[3,5386,3,5391],[3,5392,3,5397],[3,5326,3,5331],[3,5332,3,5337],[3,5338,3,5343],[3,5344,3,5349],[3,5350,3,5355],[3,5356,3,5361],[3,5290,3,5295],[3,5296,3,5301],[3,5302,3,5307],[3,5308,3,5313],[3,5314,3,5319],[3,5320,3,5325],[3,5686,3,5691],[3,5692,3,5697],[3,5698,3,5703],[3,5704,3,5709],[3,5710,3,5715],[3,5716,3,5721],[3,5650,3,5655],[3,5656,3,5661],[3,5662,3,5667],[3,5668,3,5673],[3,5674,3,5679],[3,5680,3,5685],[3,5614,3,5619],[3,5620,3,5625],[3,5626,3,5631],[3,5632,3,5637],[3,5638,3,5643],[3,5644,3,5649],[3,5578,3,5583],[3,5584,3,5589],[3,5590,3,5595],[3,5596,3,5601],[3,5602,3,5607],[3,5608,3,5613],[3,5542,3,5547],[3,5548,3,5553],[3,5554,3,5559],[3,5560,3,5565],[3,5566,3,5571],[3,5572,3,5577],[3,5506,3,5511],[3,5512,3,5517],[3,5518,3,5523],[3,5524,3,5529],[3,5530,3,5535],[3,5536,3,5541],[3,5902,3,5907],[3,5908,3,5913],[3,5914,3,5919],[3,5920,3,5925],[3,5926,3,5931],[3,5932,3,5937],[3,5866,3,5871],[3,5872,3,5877],[3,5878,3,5883],[3,5884,3,5889],[3,5890,3,5895],[3,5896,3,5901],[3,5830,3,5835],[3,5836,3,5841],[3,5842,3,5847],[3,5848,3,5853],[3,5854,3,5859],[3,5860,3,5865],[3,5794,3,5799],[3,5800,3,5805],[3,5806,3,5811],[3,5812,3,5817],[3,5818,3,5823],[3,5824,3,5829],[3,5758,3,5763],[3,5764,3,5769],[3,5770,3,5775],[3,5776,3,5781],[3,5782,3,5787],[3,5788,3,5793],[3,5722,3,5727],[3,5728,3,5733],[3,5734,3,5739],[3,5740,3,5745],[3,5746,3,5751],[3,5752,3,5757],[3,6118,3,6123],[3,6124,3,6129],[3,6130,3,6135],[3,6136,3,6141],[3,6142,3,6147],[3,6148,3,6153],[3,6082,3,6087],[3,6088,3,6093],[3,6094,3,6099],[3,6100,3,6105],[3,6106,3,6111]],"merged_total":13652,"flags":["merged_cut"]}
[{"$f":"Indice!C1","v":"TECNOLOGIA DEL SUR S.A.E.(TECSUL S.A.E.)"},null,"BG"]
[]
["NO APLICABLE"]
["NOTA 10 – ACTIVOS DISPONIBLES PARA LA VENTA"]
[null,"En guaranies"]
[null,2022,2021]
["Propiedad, planta y equipo"]
["(Detallar bienes de uso)"]
["Total",{"$f":"B8","v":0},{"$f":"C8","v":0}]
[]
["Activos intangibles"]
["(Detallar activos intangibles)"]
["Total",{"$f":"B12","v":0},{"$f":"C12","v":0}]
[]
["Inversiones"]
["(Detallar Inversiones"]
["Total",{"$f":"B16","v":0},{"$f":"C16","v":0}]
[]
["Total general",{"$f":"B9+B13+B17","v":0},{"$f":"C9+C13+C17","v":0}]

{"sheet":"Nota 11","index":15,"n_rows":11,"n_cols":6,"rows_kept":11,"cut":false,"hidden":false,"merged":[[3,0,3,3],[4,1,4,2]]}
[{"$f":"Indice!C1","v":"TECNOLOGIA DEL SUR S.A.E.(TECSUL S.A.E.)"},null,null,null,null,"BG"]
[]
[]
["NOTA 11 – ACTIVOS INTANGIBLES"]
[null,"En  guaranies"]
["Activos intangibles",2022,2021]
["Software",295752253,295752253]
["Licencias de Sistemas",107928350,107928350]
["Menos amortización acumulada",-246837129,-189275154]
[]
["Total general",{"$f":"SUM(B7:B10)","v":156843474},{"$f":"SUM(C7:C10)","v":214405449}]

{"sheet":"Nota 12","index":16,"n_rows":11,"n_cols":5,"rows_kept":11,"cut":false,"hidden":false,"merged":[[5,1,5,2],[2,1,2,2]]}
[{"$f":"Indice!C1","v":"TECNOLOGIA DEL SUR S.A.E.(TECSUL S.A.E.)"},null,null,null,"BG"]
[]
[null,"NO APLICABLE"]
[]
["NOTA 12 – GOODWILL"]
[null,"En  guaranies"]
["Goodwill",2022,2021]
[]
[]
[]
["Total general",{"$f":"SUM(B8:B10)","v":0},{"$f":"SUM(C8:C10)","v":0}]

{"sheet":"Nota 13","index":17,"n_rows":28,"n_cols":5,"rows_kept":28,"cut":false,"hidden":false,"merged":[]}
[null,null,"BG"]
[]
[]
["NOTA 13 – CUENTAS POR PAGAR COMERCIALES"]
["En  guaranies"]
["Las cuentas por pagar comerciales se componen como sigue:"]
[]
["Corrientes","Simbología según ISO 4217","Indicación de Moneda",2022,2021]
["Proveedores - Entidades Relacionadas",null,{"$f":"IFERROR(VLOOKUP(B9,'[3]Base de Monedas'!A:B,2,0),\"\")","v":""}]
["Otros proveedores del exterior","USD",{"$f":"IFERROR(VLOOKUP(B10,'[3]Base de Monedas'!A:B,2,0),\"\")","v":"Dólar estadounidense"},1907853745,1361029108]
["Otros proveedores del exterior","EUR","Euros",3243155588,4707051523]
["Proveedores locales-moneda local","PYG",{"$f":"IFERROR(VLOOKUP(B12,'[3]Base de Monedas'!A:B,2,0),\"\")","v":"Guaraní"},16137993126,5799253284]
["Proveedores locales-moneda extranjera","USD",{"$f":"IFERROR(VLOOKUP(B13,'[3]Base de Monedas'!A:B,2,0),\"\")","v":"Dólar estadounidense"},10309918095,8824912363]
["Proveedores Importacion ","USD",{"$f":"IFERROR(VLOOKUP(B14,'[3]Base de Monedas'!A:B,2,0),\"\")","v":"Dólar estadounidense"},0,0]
["Otros acreedores","PYG",{"$f":"IFERROR(VLOOKUP(B15,'[3]Base de Monedas'!A:B,2,0),\"\")","v":"Guaraní"},285614159,314559680]
["Cheques emitidos No Cobrados","PYG","Guaraní",15622485,9364358]
["Total cuentas a pagar por comerciales",null,null,{"$f":"SUM($D$9:D16)","v":31900157198},{"$f":"SUM($E$9:E16)","v":21016170316}]
[]
[]
[]
["No Corrientes","Simbología según ISO 4217","Indicación de Moneda",2022,2021]
["Proveedores - Entidades Relacionadas","PYG",{"$f":"IFERROR(VLOOKUP(B22,'Base de Monedas'!A:B,2,0),\"\")","v":"Guaraní"},0,0]
["Otros proveedores del exterior","USD",{"$f":"IFERROR(VLOOKUP(B23,'Base de Monedas'!A:B,2,0),\"\")","v":"Dólar estadounidense"},2714899531,3837020341]
["Proveedores locales Moneda Local ","PYG",{"$f":"IFERROR(VLOOKUP(B24,'Base de Monedas'!A:B,2,0),\"\")","v":"Guaraní"},32773000,65129081]
["Otros proveedores del exterior","EUR","Euros",5157810850,6666200916]
["Proveedores locales-moneda extranjera","USD",{"$f":"IFERROR(VLOOKUP(B26,'Base de Monedas'!A:B,2,0),\"\")","v":"Dólar estadounidense"},3238467768,6477713151]
["Otros acreedores","USD",{"$f":"IFERROR(VLOOKUP(B27,'Base de Monedas'!A:B,2,0),\"\")","v":"Dólar estadounidense"},0,0]
["Total cuentas a pagar por comerciales",null,null,{"$f":"SUM($D$22:D27)","v":11143951149},{"$f":"SUM($E$22:E27)","v":17046063489}]

{"sheet":"Nota 14","index":18,"n_rows":85,"n_cols":12,"rows_kept":85,"cut":false,"hidden":false,"merged":[]}
[{"$f":"Indice!C1","v":"TECNOLOGIA DEL SUR S.A.E.(TECSUL S.A.E.)"},null,null,null,"BG",null,null,null,null,null,null,"BG"]
[]
[]
["NOTA 14 –  PRESTAMOS A CORTO Y LARGO PLAZO"]
[]
["(a) Equivalentes al tipo de cambio referencial de la fecha de presentacion"]
["(b) Obligaciones garantizadas por valor de guaraníes……….."]
[]
["Corrientes"]
[null,null,null,2022,null,null,null,null,null,2021]
["Préstamos de Entidades Locales","Vencimiento","Símbolo de Moneda","Moneda","Importe (miles de Gs)","Tipo de Garantía",null,"Vencimiento","Símbolo de Moneda","Moneda","Importe (miles de Gs)","Tipo de Garantía"]
["Banco Itau S.A.","2024-12-25","PYG","Guaraní",232715126,"Co deudoria"]
["Banco Itau S.A.","2022-10-24","PYG","Guaraní",3800000000,"Co deudoria"]
["Banco Familiar S.A.E.C.A","2022-12-13","PYG","Guaraní",703687128,"Co deudoria",null,"2022-02-04","PYG","Guaraní",362008403,"Co deudoria"]
["Banco Familiar S.A.E.C.A","2022-12-21","PYG","Guaraní",856653735,"Co deudoria",null,"2022-03-19","PYG","Guaraní",326691636,"Co deudoria"]
["Banco Familiar S.A.E.C.A","2023-02-03","PYG","Guaraní",603571822,"Co deudoria",null,"2022-04-25","PYG","Guaraní",688565448,"Co deudoria"]
["Banco Familiar S.A.E.C.A","2023-03-13","PYG","Guaraní",703687127,"Co deudoria"]
["Banco Familiar S.A.E.C.A","2023-04-13","PYG","Guaraní",604959842,"Co deudoria"]
["Banco Familiar S.A.E.C.A","2023-06-19","PYG","Guaraní",856653735,"Co deudoria"]
["Banco Familiar S.A.E.C.A","2023-09-10","PYG","Guaraní",604959842,"Co deudoria"]
["Banco Sudameris S.A.E.C.A","2023-12-20","PYG","Guaraní",457500000,"Co deudoria",null,"2023-12-20","PYG","Guaraní",366000000,"Co deudoria"]
["Banco Regional S.A.E.C.A.","2026-04-18","PYG","Guaraní",39582056,"Co deudoria"]
["Banco Regional S.A.E.C.A.","2023-07-23","PYG","Guaraní",1900000000,"Co deudoria"]
["Banco Regional S.A.E.C.A.","2023-07-31","PYG","Guaraní",1200000000,"Co deudoria"]
["Banco Regional S.A.E.C.A.","2023-08-03","PYG","Guaraní",2800000000,"Co deudoria"]
["Bancop S.A.","2023-03-04","PYG","Guaraní",750000000,"Co deudoria",null,"2022-03-03","PYG","Guaraní",125000000,"Co deudoria"]
["Bancop S.A.","2023-03-26","PYG","Guaraní",375000000,"Co deudoria",null,"2022-04-12","PYG","Guaraní",500000000,"Co deudoria"]
["Bancop S.A.","2023-09-22","PYG","Guaraní",375000000,"Co deudoria"]
["Financiera Paraguayo Japonesa S.A.E.C.A.","2023-09-04","PYG","Guaraní",1013875847,"Co deudoria",null,"2022-07-01","PYG","Guaraní",1607040000,"Co deudoria"]
["Financiera Paraguayo Japonesa S.A.E.C.A.","2023-03-03","PYG","Guaraní",434660153,"Co deudoria"]
["Financiera el Comercio S.A.E.C.A.",null,null,null,null,null,null,"2022-02-05","PYG","Guaraní",1498679496,"Co deudoria"]
["Banco Nacional de Fomento","2026-07-23","PYG","Guarani",240000000,"Co deudoria",null,"2026-07-23","PYG","Guarani",120000000,"Co deudoria"]
["Banco Nacional de Fomento","2027-04-10","PYG","Guarani",620000000,"Co deudoria",null,"2027-04-10","PYG","Guarani",310000000,"Co deudoria"]
["Cheques Diferidos",null,null,null,4359749033,null,null,null,null,null,2235964487]
["Sobregiros en Cuenta Corriente",null,null,null,0,null,null,null,null,null,2272053]
["Tarjeta de credito Empresarial ",null,null,null,23365685,null,null,null,null,null,16976095]
["Deudas bursátiles",null,null,{"$f":"IFERROR(VLOOKUP(C37,'Base de Monedas'!A:B,2,0),\"\")","v":""},null,null,null,null,null,{"$f":"IFERROR(VLOOKUP(I37,'Base de Monedas'!A:B,2,0),\"\")","v":""}]
["(Incluir programas de forma individual)",null,null,{"$f":"IFERROR(VLOOKUP(C38,'Base de Monedas'!A:B,2,0),\"\")","v":""},null,null,null,null,null,{"$f":"IFERROR(VLOOKUP(I38,'Base de Monedas'!A:B,2,0),\"\")","v":""}]
["Préstamos de Entidades en el Exterior",null,null,{"$f":"IFERROR(VLOOKUP(C39,'Base de Monedas'!A:B,2,0),\"\")","v":""},null,null,null,null,null,{"$f":"IFERROR(VLOOKUP(I39,'Base de Monedas'!A:B,2,0),\"\")","v":""}]
["Nombre de la entidad financiera",null,null,{"$f":"IFERROR(VLOOKUP(C40,'Base de Monedas'!A:B,2,0),\"\")","v":""},null,null,null,null,null,{"$f":"IFERROR(VLOOKUP(I40,'Base de Monedas'!A:B,2,0),\"\")","v":""}]
["Nombre de la entidad financiera",null,null,{"$f":"IFERROR(VLOOKUP(C41,'Base de Monedas'!A:B,2,0),\"\")","v":""},null,null,null,null,null,{"$f":"IFERROR(VLOOKUP(I41,'Base de Monedas'!A:B,2,0),\"\")","v":""}]
["(incluir otras entidades)",null,null,{"$f":"IFERROR(VLOOKUP(C42,'Base de Monedas'!A:B,2,0),\"\")","v":""},null,null,null,null,null,{"$f":"IFERROR(VLOOKUP(I42,'Base de Monedas'!A:B,2,0),\"\")","v":""}]
["Deudas bursátiles",null,null,{"$f":"IFERROR(VLOOKUP(C43,'Base de Monedas'!A:B,2,0),\"\")","v":""},null,null,null,null,null,{"$f":"IFERROR(VLOOKUP(I43,'Base de Monedas'!A:B,2,0),\"\")","v":""}]
["(Incluir programas de forma individual)",null,null,{"$f":"IFERROR(VLOOKUP(C44,'Base de Monedas'!A:B,2,0),\"\")","v":""},null,null,null,null,null,{"$f":"IFERROR(VLOOKUP(I44,'Base de Monedas'!A:B,2,0),\"\")","v":""}]
["Intereses préstamos entidades financieras a pagar",null,null,{"$f":"IFERROR(VLOOKUP(C45,'Base de Monedas'!A:B,2,0),\"\")","v":""},null,null,null,null,null,{"$f":"IFERROR(VLOOKUP(I45,'Base de Monedas'!A:B,2,0),\"\")","v":""}]
["Intereses a pagar",null,"PYG",{"$f":"IFERROR(VLOOKUP(C46,'Base de Monedas'!A:B,2,0),\"\")","v":"Guaraní"},2170831164,null,null,null,"PYG",{"$f":"IFERROR(VLOOKUP(I46,'Base de Monedas'!A:B,2,0),\"\")","v":"Guaraní"},1043688421]
["(-) Intereses a Devengar",null,"PYG","Guaraní",-2170831164,null,null,null,"PYG","Guaraní",-1043688421]
["Intereses deudas bursátiles a pagar",null,null,{"$f":"IFERROR(VLOOKUP(C48,'Base de Monedas'!A:B,2,0),\"\")","v":""}]
["Intereses a pagar",null,null,{"$f":"IFERROR(VLOOKUP(C49,'Base de Monedas'!A:B,2,0),\"\")","v":""},3503248384,null,null,null,null,null,3504444278]
["(-) Intereses a Devengar",null,null,{"$f":"IFERROR(VLOOKUP(C50,'Base de Monedas'!A:B,2,0),\"\")","v":""},-3503248384,null,null,null,null,null,-3504444278]
["Total",null,null,{"$f":"IFERROR(VLOOKUP(C51,'Base de Monedas'!A:B,2,0),\"\")","v":""},{"$f":"SUM(E12:E50)+E46+E49","v":29229700679},null,null,null,null,null,{"$f":"SUM(K12:K50)+K46+K49","v":12707330317}]
[]
[]
["No Corrientes"]
[null,2022,null,null,null,null,null,null,null,2020]
["Préstamos de Entidades Locales","Vencimiento","Símbolo de Moneda","Moneda","Importe (miles de Gs)","Tipo de garantía",null,"Vencimiento","Símbolo de Moneda","Moneda","Importe (miles de Gs)","Tipo de Garantía"]
["Banco Sudameris S.A.E.C.A","2023-12-20","PYG","Guarani",91500000,"Co deudoria",null,"2023-12-20","PYG",{"$f":"IFERROR(VLOOKUP(I57,'[3]Base de Monedas'!A:B,2,0),\"\")","v":"Guaraní"},366000000,"Co deudoria"]
["Banco Regional S.A.E.C.A","2026-04-18","PYG","Guarani",118746168,"Co deudoria"]
["Banco Nacional de Fomento","2026-07-23","PYG","Guarani",720000000,"Co deudoria",null,"2026-07-23","PYG",{"$f":"IFERROR(VLOOKUP(I59,'[3]Base de Monedas'!A:B,2,0),\"\")","v":"Guaraní"},840000000,"Co deudoria"]
["Banco Nacional de Fomento","2027-04-10","PYG","Guarani",2480000000,"Co deudoria",null,"2027-04-10","PYG","Guarani",2910000000,"Co deudoria"]
["Banco Itau Paraguay S.A.","2024-12-25","PYG","Guarani",342894816,"Co deudoria"]
["Deudas bursátiles",null,null,{"$f":"IFERROR(VLOOKUP(C62,'Base de Monedas'!A:B,2,0),\"\")","v":""},null,null,null,null,null,{"$f":"IFERROR(VLOOKUP(I62,'Base de Monedas'!A:B,2,0),\"\")","v":""}]
["Emision Global de Bonos G1-Serie 1(Uno) PYTSU01F2040","2025-09-09","PYG","Guarani",5000000000,"Sola Firma",null,"2025-09-09","PYG","Guarani",5000000000,"Sola Firma"]
["Emision Global de Bonos G1-Serie 2(Dos) PYTSU01F2056","2026-03-10","PYG","Guarani",5000000000,"Sola Firma",null,"2026-03-10","PYG","Guarani",5000000000,"Sola Firma"]
["Emision Global de Bonos G1-Serie 3(Tres) PYTSU03F2063","2026-09-08","PYG","Guarani",5000000000,"Sola Firma",null,"2026-09-08","PYG","Guarani",5000000000,"Sola Firma"]
["Emision Global de Bonos G1-Serie 4(Tres) PYTSU04F2377","2025-10-16","PYG","Guarani",5000000000,"Sola Firma",null,"2025-10-16","PYG","Guarani",5000000000,"Sola Firma"]
["Emision Global de Bonos G1-Serie 5(Tres) PYTSU05F2384","2026-04-16","PYG","Guarani",5000000000,"Sola Firma",null,"2026-04-16","PYG","Guarani",5000000000,"Sola Firma"]
["Emision Global de Bonos G1-Serie 6(Tres) PYTSU06F2391","2026-10-15","PYG","Guarani",5000000000,"Sola Firma",null,"2026-10-15","PYG","Guarani",5000000000,"Sola Firma"]
["Emision Global de Bonos USD1-Serie 1(uno) PYTSU01F2073","2025-09-09","USD","Guarani",3443700000,"Sola Firma",null,"2025-09-09","USD","Guarani",3443700000,"Sola Firma"]
["Emision Global de Bonos USD1-Serie 2(Dos) PYTSU01F2080","2026-03-10","USD","Guarani",3443700000,"Sola Firma",null,"2026-03-10","USD","Guarani",3443700000,"Sola Firma"]
["(Incluir programas de forma individual)",null,null,{"$f":"IFERROR(VLOOKUP(C71,'Base de Monedas'!A:B,2,0),\"\")","v":""},null,null,null,null,null,{"$f":"IFERROR(VLOOKUP(I71,'Base de Monedas'!G:H,2,0),\"\")","v":""}]
["Préstamos de Entidades en el Exterior",null,null,{"$f":"IFERROR(VLOOKUP(C72,'Base de Monedas'!A:B,2,0),\"\")","v":""},null,null,null,null,null,{"$f":"IFERROR(VLOOKUP(I72,'Base de Monedas'!A:B,2,0),\"\")","v":""}]
["Nombre de la entidad financiera",null,null,{"$f":"IFERROR(VLOOKUP(C73,'Base de Monedas'!A:B,2,0),\"\")","v":""},null,null,null,null,null,{"$f":"IFERROR(VLOOKUP(I73,'Base de Monedas'!A:B,2,0),\"\")","v":""}]
["Nombre de la entidad financiera",null,null,{"$f":"IFERROR(VLOOKUP(C74,'Base de Monedas'!A:B,2,0),\"\")","v":""},null,null,null,null,null,{"$f":"IFERROR(VLOOKUP(I74,'Base de Monedas'!A:B,2,0),\"\")","v":""}]
["(incluir otras entidades)",null,null,{"$f":"IFERROR(VLOOKUP(C75,'Base de Monedas'!A:B,2,0),\"\")","v":""},null,null,null,null,null,{"$f":"IFERROR(VLOOKUP(I75,'Base de Monedas'!A:B,2,0),\"\")","v":""}]
["Deudas bursátiles",null,null,{"$f":"IFERROR(VLOOKUP(C76,'Base de Monedas'!A:B,2,0),\"\")","v":""},null,null,null,null,null,{"$f":"IFERROR(VLOOKUP(I76,'Base de Monedas'!A:B,2,0),\"\")","v":""}]
["(Incluir programas de forma individual)",null,null,{"$f":"IFERROR(VLOOKUP(C77,'Base de Monedas'!A:B,2,0),\"\")","v":""},null,null,null,null,null,{"$f":"IFERROR(VLOOKUP(I77,'Base de Monedas'!A:B,2,0),\"\")","v":""}]
["Intereses préstamos entidades financieras a pagar",null,null,{"$f":"IFERROR(VLOOKUP(C78,'Base de Monedas'!A:B,2,0),\"\")","v":""},null,null,null,null,null,{"$f":"IFERROR(VLOOKUP(I78,'Base de Monedas'!A:B,2,0),\"\")","v":""}]
["Intereses a pagar",null,"PYG",{"$f":"IFERROR(VLOOKUP(C79,'Base de Monedas'!A:B,2,0),\"\")","v":"Guaraní"},620795491,null,null,null,"PYG",{"$f":"IFERROR(VLOOKUP(I79,'Base de Monedas'!A:B,2,0),\"\")","v":"Guaraní"},809411273]
["(-) Intereses a Devengar",null,"PYG","Guarani",-620795491,null,null,null,"PYG","Guaraní",-809411273]
["Intereses deudas bursátiles a pagar",null,null,{"$f":"IFERROR(VLOOKUP(C81,'Base de Monedas'!A:B,2,0),\"\")","v":""},null,null,null,null,null,{"$f":"IFERROR(VLOOKUP(I81,'Base de Monedas'!A:B,2,0),\"\")","v":""}]
["Intereses a pagar",null,null,{"$f":"IFERROR(VLOOKUP(C82,'Base de Monedas'!A:B,2,0),\"\")","v":""},9062940688,null,null,null,null,{"$f":"IFERROR(VLOOKUP(I82,'Base de Monedas'!A:B,2,0),\"\")","v":""},11690376488]
["(-) Intereses a Devengar",null,null,{"$f":"IFERROR(VLOOKUP(C83,'Base de Monedas'!A:B,2,0),\"\")","v":""},-9062940688,null,null,null,null,null,-11690376488]
["Total",null,null,{"$f":"IFERROR(VLOOKUP(C84,'Base de Monedas'!A:B,2,0),\"\")","v":""},{"$f":"SUM(E57:E83)+E79+E82","v":50324277163},null,null,null,null,{"$f":"IFERROR(VLOOKUP(I84,'Base de Monedas'!A:B,2,0),\"\")","v":""},{"$f":"SUM(K57:K83)+K79+K82","v":53503187761}]
[null,null,null,null,null,null,null,null,null,{"$f":"IFERROR(VLOOKUP(I85,'Base de Monedas'!H:I,2,0),\"\")","v":""}]

{"sheet":"Nota 15","index":19,"n_rows":15,"n_cols":4,"rows_kept":15,"cut":false,"hidden":false,"merged":[[6,1,6,2]]}
[{"$f":"Indice!C1","v":"TECNOLOGIA DEL SUR S.A.E.(TECSUL S.A.E.)"},null,null,"BG"]
[]
["NO APLICABLE"]
[]
["NOTA 15 – PORCION CORRIENTE DE LA DEUDA A LARGO PLAZO"]
[]
[null,"En guaranies"]
["Porción corriente de la deuda a largo plazo",2022,2021]
["Cuentas por pagar comerciales"]
["Préstamos bancarios"]
["Bonos bursátiles"]
["Intereses bancarios a pagar"]
["Intereses bursatiles a pagar"]
["(nuevas cuentas a incluir)"]
["Total general",{"$f":"SUM($B$9:B14)","v":0},{"$f":"SUM($C$9:C14)","v":0}]

{"sheet":"Nota 16","index":20,"n_rows":12,"n_cols":6,"rows_kept":12,"cut":false,"hidden":false,"merged":[[5,1,5,2]]}
[{"$f":"Indice!C1","v":"TECNOLOGIA DEL SUR S.A.E.(TECSUL S.A.E.)"},null,null,null,null,"BG"]
[]
[]
["NOTA 16 – REMUNERACIONES Y CARGAS SOCIALES A PAGAR"]
[]
[null,"En  guaranies"]
["Remuneraciones y cargas sociales a pagar",2022,2021]
["Sueldos y otras remuneraciones a pagar",621241775,0]
["Aportes y retenciones a pagar",291684284,522259312]
["Remuneraciones al personal superior a pagar",0,0]
["Retencion Judicial a empleados",921771,0]
["Total",{"$f":"SUM($B$8:B11)","v":913847830},{"$f":"SUM($C$8:C11)","v":522259312}]

{"sheet":"Nota 17","index":21,"n_rows":13,"n_cols":7,"rows_kept":13,"cut":false,"hidden":false,"merged":[[6,1,6,2]]}
[{"$f":"Indice!C1","v":"TECNOLOGIA DEL SUR S.A.E.(TECSUL S.A.E.)"},null,null,null,null,null,"BG"]
[]
[]
[]
["NOTA 17 –  IMPUESTOS A PAGAR"]
[]
[null,"En guaranies"]
["Impuestos a pagar",2022,2021]
["Impuesto a la renta a pagar",0,971400566]
["Otros impuestos a pagar",7512389,32953398]
["IVA Débito Fiscal 10% a Pagar",0,998359313]
[]
["Total",{"$f":"SUM($B$9:B12)","v":7512389},{"$f":"SUM($C$9:C12)","v":2002713277}]

{"sheet":"Nota 18","index":22,"n_rows":13,"n_cols":4,"rows_kept":13,"cut":false,"hidden":false,"merged":[[3,0,3,3],[6,0,7,0],[5,1,5,2]]}
[{"$f":"Indice!C1","v":"TECNOLOGIA DEL SUR S.A.E.(TECSUL S.A.E.)"},null,null,"BG"]
[]
[]
["NOTA 18 -  PROVISIONES"]
[]
[null,"En  guaranies"]
["Provisiones",2022,2021]
[]
["Alquileres a Pagar",2100000,3800000]
["Servicios Basicos a Pagar",0,0]
["Honorarios Profesionales a Pagar",0,0]
["Garantia de alquiler",7980800,0]
["Total",{"$f":"SUM($B$9:B12)","v":10080800},{"$f":"SUM($C$9:C12)","v":3800000}]

{"sheet":"Nota 19","index":23,"n_rows":22,"n_cols":7,"rows_kept":22,"cut":false,"hidden":false,"merged":[[3,0,3,1]]}
[{"$f":"Indice!C1","v":"TECNOLOGIA DEL SUR S.A.E.(TECSUL S.A.E.)"},null,null,"BG"]
[]
["NOTA 19 – OTROS PASIVOS CORRIENTES y NO CORRIENTES"]
["En  guaranies"]
[]
["Corrientes",2022,2021,null,"No Corrientes",2022,2021]
["Retencion de IVA a pagar",0,0,null,"Retencion de IVA a pagar",0,0]
["Retencion Impuesto a la renta a Pagar",0,0,null,"Retencion Impuesto a la renta a Pagar",0,0]
["Impuestos diferidos",0,0,null,"Impuestos diferidos",0,0]
["Otros ingresos diferidos (Anticipo de Obras)",13159732357,9256964198,null,"Otros ingresos diferidos (Anticipo de Obras)",15603363365,25520038314]
["Otros Pasivos con Entidades relacionadas ",0,0,null,"Otros Pasivos con Entidades relacionadas ",0,0]
["Previsiones para contingencias/Indemnizaciones y despidos",0,0,null,"Previsiones para contingencias/Indemnizaciones y despidos",0,0]
["Deudas Fiscales corto plazo",606542480,418409657,null,"Deudas Fiscales Largo plazo",90003530,330878927]
["Otros acreedores Corto plazo",0,0,null,"Otros acreedores Largo plazo",0,0]
["Dividendos a Pagar",0,0,null,"Intereses a Pagar IVA DGR",0,0]
["Anticipo de Clientes",2430360391,26842938,null,"Intereses a Pagar Facilidad - IPS",0,0]
["Otros intereses a pagar",350988,3197015,null,"Ips a pagar Facilidad de Pago",0,0]
["Intereses a Pagar Facilidad - IPS",0,6690991,null,"Proveedores Locales Largo Plazo",32773000,65129081]
["Intereses a Pagar IVA DGR",0,0,null,"Proveedores del Exterior Largo Plazo",7872710381,10503221257]
["Retencion IDU a Pagar",0,0,null,"Proveedores Moneda Extranjera Largo Plazo",3238467768,6477713151]
["Retencion Fondo de Garantia a Pagar",301346864,0,null,"Total ",{"$f":"SUM(F7:F20)","v":26837318044},{"$f":"SUM(G7:G20)","v":42896980730}]
["Total ",{"$f":"SUM(B7:B21)","v":16498333080},{"$f":"SUM(C7:C19)","v":9712104799}]

{"sheet":"Nota 20","index":24,"n_rows":13,"n_cols":4,"rows_kept":13,"cut":false,"hidden":false,"merged":[[3,0,3,3]]}
[{"$f":"Indice!C1","v":"TECNOLOGIA DEL SUR S.A.E.(TECSUL S.A.E.)"},null,null,"BG"]
[]
[]
["NOTA 20 – CAPITAL INTEGRADO"]
[]
["Fecha",2022,2021]
["Monto Capital Social",{"$f":"+B8","v":50700000000},46000000000]
["Monto Capital Integrado",50700000000,21000000000]
["Aporte Irrevocable para Futuro Aumento",0,0]
["Capital a Integrar",0,25000000000]
["Cantidad de Acciones",50700,46000]
["Valor Nominal de Acciones",1000000,1000000]
["Total",{"$f":"+B8+B10","v":50700000000},46000000000]

{"sheet":" Nota 21","index":25,"n_rows":23,"n_cols":6,"rows_kept":23,"cut":false,"hidden":false,"merged":[[3,0,3,5],[5,1,5,2]]}
[{"$f":"Indice!C1","v":"TECNOLOGIA DEL SUR S.A.E.(TECSUL S.A.E.)"},null,null,null,null,"BG"]
[]
[]
["NOTA 21 – RESERVAS"]
[]
[null,"En  guaranies"]
[null,2022,2021]
["a  Reserva de revalúo",3950679497,3950679497]
[]
[]
[]
[]
[]
["b Reserva legal",2514614544,2514614544]
[]
[]
[]
["c Reservas estatutarias"]
[]
[]
[]
["d Reservas facultativas",{"$f":"+SUM($B$23:B28)","v":0},{"$f":"+SUM($C$23:C28)","v":0}]
["N/A"]

{"sheet":"Nota 22","index":26,"n_rows":8,"n_cols":6,"rows_kept":8,"cut":false,"hidden":false,"merged":[[5,1,5,2]]}
[{"$f":"Indice!C1","v":"TECNOLOGIA DEL SUR S.A.E.(TECSUL S.A.E.)"},null,null,null,null,"BG"]
[]
["NO APLICABLE"]
["NOTA 22 –  DIFERENCIA TRANSITORIA POR CONVERSION"]
[]
[null,"En  guaranies"]
[null,2022,2021]
["Diferencia transitoria por conversión"]

{"sheet":"Nota 23","index":27,"n_rows":10,"n_cols":6,"rows_kept":10,"cut":false,"hidden":false,"merged":[[5,1,5,2]]}
[{"$f":"Indice!C1","v":"TECNOLOGIA DEL SUR S.A.E.(TECSUL S.A.E.)"},null,null,null,null,"BG"]
[]
[]
["NOTA 23 –  RESULTADOS ACUMULADOS"]
[]
[null,"En  guaranies"]
[null,2022,2021]
["Resultado de ejercicios anteriores",0,0]
["Resultado del ejercicio actual",2669546298,5846865545]
["Totales",{"$f":"SUM($B$8:B9)","v":2669546298},{"$f":"SUM($C$8:C9)","v":5846865545}]

{"sheet":"Nota 24","index":28,"n_rows":8,"n_cols":6,"rows_kept":8,"cut":false,"hidden":false,"merged":[[5,1,5,2]]}
[{"$f":"Indice!C1","v":"TECNOLOGIA DEL SUR S.A.E.(TECSUL S.A.E.)"},null,null,null,null,"BG"]
[]
[null,"NO APLICABLE"]
["NOTA 24 –  INTERES MINORITARIO"]
[]
[null,"En guaranies"]
[null,2022,2021]
["Interes Minoritario"]

{"sheet":"Nota 25","index":29,"n_rows":31,"n_cols":5,"rows_kept":31,"cut":false,"hidden":false,"merged":[[7,1,7,2]]}
[{"$f":"Indice!C1","v":"TECNOLOGIA DEL SUR S.A.E.(TECSUL S.A.E.)"},null,null,null,"ER"]
[]
[]
[]
["NOTA 25 –  VENTAS"]
[]
[]
[null,"En Guaranies"]
[null,2022,2021]
["Ventas"]
["VENTAS DE SERVICIOS SECTOR PUBLICO "]
["Local"]
["Ingresos por certificado de Obras",38182325603,66095997473]
["Ventas de Alquiler de Equipos y Maquinarias",721362728,4025157277]
["Ingresos por certificado Alquiler de Maquinarias",1089351819,0]
["Ventas de servicios sector publico",1467728496,2295031199]
[]
["VENTAS DE SERVICIOS SECTOR PRIVADO"]
["Local"]
["Ingresos por certificado de Obras",25576406254,25520405960]
["Ingresos por certificado Alquiler de Equipos y  Maquinarias",1447571865,0]
["Ventas de Alquiler de Equipos y Maquinarias",3150793217,6990973205]
["Ventas de servicios sector privado",9091647134,11689844604]
["(-) Descuentos Concedidos ",-407992195,-1103871286]
[]
["VENTAS DE MERCADERIAS"]
["Local"]
["Ventas de mercaderias gravadas por el IVA",1054028807,4329481644]
["Ventas de mercaderias exentas de IVA",2818644168,1529655691]
["Ventas por productos de Explotacion Minera",176049154,1993968558]
["Total",{"$f":"SUM(B13:B30)","v":84367917050},{"$f":"SUM(C13:C30)","v":123366644325}]

{"sheet":"Nota 26","index":30,"n_rows":27,"n_cols":5,"rows_kept":27,"cut":false,"hidden":false,"merged":[[4,0,4,5],[6,1,6,2],[7,1,7,2]]}
[{"$f":"Indice!C1","v":"TECNOLOGIA DEL SUR S.A.E.(TECSUL S.A.E.)"},null,null,null,"ER"]
[]
[]
[]
["NOTA 26 - COSTO DE VENTAS"]
[]
[]
[null,"En Guaraníes"]
["Costo Operativo  ",2022,2021]
[]
["Existencia inicial del inventario","-","-"]
["Costo de Fletes Pagados",1390595987,4190108308]
["Costo Operativo de Materiales ",9543578093,19644449636]
["Costo de Combustibles y Lubricantes",13665821389,11151020529]
["Costo de servicios prestados",18217667956,28623169729]
["Costo de Mantenimientos de Maquinarias y Equipos",4961427441,7468959182]
["Costo de Alquiler de Equipos ",968140925,3041987059]
["Costo Tasa por Recoleccion  de Basura",256500000,342000000]
["Costo de herramientas menores",247504120,196594799]
["Otros costos operativos ",2205418792,0]
["Linea de negocio 2"]
["Existencia inicial del inventario"]
["+ Compra de bienes y servicios"]
["+ Costo de producción"]
["- Existencia final de inventario"]
["(nuevas lineas de negocio a incluir)"]
["Total costo de ventas",{"$f":"SUM($B$10:B26)","v":51456654703},{"$f":"SUM($C$10:C26)","v":74658289242}]

{"sheet":"Nota 27","index":31,"n_rows":68,"n_cols":7,"rows_kept":68,"cut":false,"hidden":false,"merged":[[5,0,5,7],[10,0,11,0]]}
[{"$f":"Indice!C1","v":"TECNOLOGIA DEL SUR S.A.E.(TECSUL S.A.E.)"},null,null,null,null,null,"ER"]
[]
[]
[]
["NOTA 27 - GASTOS"]
["(Esta nota deberá ser incluida cuando en el estado de resultados se haga mención a una cuenta de carácter general o cuyo nombre no permita una adecuada identificación de la naturaleza del gasto y su importe sea significativo) "]
[]
["El rubro está compuesto de la siguiente forma: "]
[]
["En guaraníes"]
[null,null,2022,null,null,2021]
[null,"Gastos de Ventas","Gastos Administrativos","Total","Gastos de Ventas","Gastos Administrativos","Total"]
["Publicidad y Propaganda",123596639,0,{"$f":"+C13+B13","v":123596639},128685110,0,{"$f":"+F13+E13","v":128685110}]
["Viaticos y Movilidad",201953773,94270289,296224062,450680095,230575674,{"$f":"+E14+F14","v":681255769}]
["Servicios de Señalizacion y carteleria",72017056,0,72017056,151131386,0,{"$f":"+E15+F15","v":151131386}]
["Sueldos y Jornales",8428197446,1468439766,9896637212,10723795611,2087665726,{"$f":"+E16+F16","v":12811461337}]
["Aporte Patronal",1390652575,242292559,1632945134,1769423260,344467842,2113891102]
["Aguinaldo",125691265,1946667,127637932,856166581,179200674,1035367255]
["Comisiones pagadas sobre ventas",294910091,0,294910091,267655605,0,267655605]
["Otros gastos de Ventas",72758543,0,72758543,0,0,0]
["Gastos de Consumiciones-Casino",470657053,0,470657053,0,0,0]
["Bonificacion Familiar",0,0,0,457863,343398,801261]
["Remuneracion Personal Superior",0,360000000,360000000,0,425909091,425909091]
["Gastos de Representacion",0,158804859,158804859,0,196735980,196735980]
["Honorarios Profesionales",0,2672828601,2672828601,0,2660624971,2660624971]
["Alquileres Pagados",0,42526949,42526949,0,312865217,312865217]
["Agua,luz,telefono e internet",0,144656802,144656802,0,286007502,286007502]
["Combustibles y Lubricantes",0,47916686,47916686,0,84803114,84803114]
["Reparaciones y Mantenimientos",0,32356939,32356939,0,130090911,130090911]
["Seguros Pagados",0,1293649853,1293649853,0,1888588658,1888588658]
["Utiles de Oficina",0,33452095,33452095,0,56898202,56898202]
["Donaciones y Contribuciones",0,2181818,2181818,0,12510000,12510000]
["Impuestos,tasas,patentes y otras contribuciones",0,165018016,165018016,0,212397877,212397877]
["Ley 2051/03 Art.41",0,103165737,103165737,0,187921648,187921648]
["Gastos Generales",0,160483594,160483594,0,156018138,156018138]
["Servicios contratados",0,1182092914,1182092914,0,533581008,533581008]
["Impresos Varios",0,67171815,67171815,0,118435400,118435400]
["Servicios e Insumos informaticos",0,149435086,149435086,0,134398115,134398115]
["Gastos de seguridad",0,380098898,380098898,0,247755740,247755740]
["Suscripciones varias",0,100356255,100356255,0,136482500,136482500]
["Gastos no Deducibles",0,516093506,{"$f":"+C41+B41","v":516093506},592695268,2154873163,2747568431]
["Iva Gasto 10%",0,0,0,0,31273,31273]
["Gastos de Escribania",0,41423847,41423847,0,140787148,140787148]
["Otros Gastos de Administracion",0,994742,994742,0,124562501,124562501]
["Otros Beneficios al Personal",0,107913811,{"$f":"+C45+B45","v":107913811},0,0,0]
["Gastos de Capacitacion",0,21355386,21355386,0,14846366,{"$f":"+E46+F46","v":14846366}]
["Gastos de Limpieza",0,35689771,35689771,0,44531612,44531612]
["Gastos de Envio",0,9189890,9189890,0,22588764,22588764]
["Gastos de Personal",0,50883055,50883055,0,89695818,89695818]
["Gastos de Muebles y Enseres",0,91529829,{"$f":"+C50+B50","v":91529829},0,53131010,53131010]
["Intereses, multas y recargos impositivos",0,0,{"$f":"+C51+B51","v":0},0,0,0]
["Gastos de Licitacion",0,194203,194203,0,20910986,{"$f":"+E52+F52","v":20910986}]
["Regalos Empresariales",0,590909,590909,0,125551637,{"$f":"+E53+F53","v":125551637}]
["Gastos de Consumiciones-Casino",0,225590301,225590301,0,967684027,967684027]
["Gastos de Certificado de Nacionalizacion",0,0,0,0,0,0]
["Servicios de Consultoria y Asesoramiento",0,0,0,0,0,0]
["Depreciación bienes de uso del ejercicio",0,6541324542,6541324542,0,8051854437,8051854437]
["Amortización activos intangibles",0,57561975,57561975,0,114098424,114098424]
["Reserva Legal del Ejercicio",0,0,0,0,307729766,307729766]
[null,null,null,null,null,null,0]
["Certificado Emision de Garantia",0,0,0,0,331500000,331500000]
["Uniformes",0,67964545,67964545,0,38289998,38289998]
["Gastos de emision de Bonos",0,7646689,7646689,0,327538051,327538051]
["Gastos de Mejoras en oficina central",0,0,0,0,6520909,6520909]
["Gastos de Consumicion cena de fin de año",0,7840465,0,0,35340510,35340510]
["Utilidad/Perdida en venta de activos fijos",0,0,0,0,458034822,458034822]
["Juicios y Gastos Judiciales ",0,7585252,{"$f":"+C67+B67","v":7585252},0,0,0]
["Total",{"$f":"+SUM($B$13:B67)","v":11180434441},{"$f":"+SUM($C$13:C67)","v":16694518916},{"$f":"+SUM($D$13:D67)","v":27867112892},{"$f":"+SUM($E$13:E66)","v":14940690779},{"$f":"+SUM($F$13:F66)","v":24054378608},{"$f":"+SUM($G$13:G66)","v":38995069387}]

{"sheet":"Nota 28","index":32,"n_rows":13,"n_cols":7,"rows_kept":13,"cut":false,"hidden":false,"merged":[[3,0,3,4],[5,1,5,2]]}
[{"$f":"Indice!C1","v":"TECNOLOGIA DEL SUR S.A.E.(TECSUL S.A.E.)"},null,null,null,"ER"]
[]
[]
["Nota 28 - Otros Ingresos y gastos operativos"]
[]
["En guaraníes"]
[]
["Otros ingresos",2022,2021,null,"Otros gastos",2022,2021]
["Ingreso por Venta de Activo Fijo",0,374748138,null,"(Detallar cuenta)"]
["Descuentos Obtenidos ",65752999,115996582]
["Recupero de Siniestro ",0,0]
["Otros Ingresos Operativos",114709531,23661363]
["Total",{"$f":"SUM($B$9:B12)","v":180462530},{"$f":"SUM($C$9:C12)","v":514406083},null,"Total",{"$f":"SUM($F$9:F12)","v":0},{"$f":"SUM($G$9:G12)","v":0}]

{"sheet":"Nota 29","index":33,"n_rows":13,"n_cols":7,"rows_kept":13,"cut":false,"hidden":false,"merged":[]}
[{"$f":"Indice!C1","v":"TECNOLOGIA DEL SUR S.A.E.(TECSUL S.A.E.)"},null,null,null,"ER"]
[]
[]
[]
["NOTA 29 - INGRESOS Y GASTOS FINANCIEROS NETOS"]
["En guaraníes"]
[]
["Ingresos Financieros netos",2022,2021,null,"Gastos Financieros netos",2022,2021]
["Ganancias por Diferencia de Cambio",85969997,1843201245,null,"Intereses Pagados",3775113317,3917731710]
["Intereses Ganados",1762921131,1595586455,null,"Gastos Bancarios",118706941,281175097]
[null,null,null,null,"Resultado por Diferencia de cambios",128452748,1534262548]
[null,null,null,null,"Otros intereses pagados",373843344,1115044013]
["Total ingresos financieros",{"$f":"SUM($B9:B12)","v":1848891128},{"$f":"SUM($C9:C12)","v":3438787700},null,"Total gastos financieros",{"$f":"SUM($F9:F12)","v":4396116350},{"$f":"SUM($G9:G12)","v":6848213368}]

{"sheet":"Nota 30","index":34,"n_rows":16,"n_cols":5,"rows_kept":16,"cut":false,"hidden":false,"merged":[[5,1,5,2]]}
[{"$f":"Indice!C1","v":"TECNOLOGIA DEL SUR S.A.E.(TECSUL S.A.E.)"},null,null,null,"ER"]
[]
[]
["Nota 30 - Resultado de inversiones en asociadas"]
["En guaraníes"]
[null,"NO APLICABLE"]
[]
["Resultado de inversiones en asociadas",2022,2021]
["(Detallar cuenta)"]
[]
[]
[]
[]
[]
[]
["Total",{"$f":"SUM($B9:B15)","v":0},{"$f":"SUM($C9:C15)","v":0}]

{"sheet":"Nota 31","index":35,"n_rows":16,"n_cols":5,"rows_kept":16,"cut":false,"hidden":false,"merged":[[4,0,4,1],[5,1,5,2]]}
[{"$f":"Indice!C1","v":"TECNOLOGIA DEL SUR S.A.E.(TECSUL S.A.E.)"},null,null,null,"ER"]
[]
[]
["Nota 31 - Resultado participación minoritaria"]
["En  guaraníes"]
[null," NO APLICABLE"]
[]
["Resultado participación minoritaria",2022,2021]
["(Detallar cuenta)"]
[]
[]
[]
[]
[]
[]
["Total",{"$f":"SUM($B9:B15)","v":0},{"$f":"SUM($C9:C15)","v":0}]

{"sheet":"Nota 32","index":36,"n_rows":14,"n_cols":5,"rows_kept":14,"cut":false,"hidden":false,"merged":[[5,1,5,2]]}
[{"$f":"Indice!C1","v":"TECNOLOGIA DEL SUR S.A.E.(TECSUL S.A.E.)"},null,null,null,"ER"]
[]
[]
["Nota 32 - IMPUESTO A LA RENTA"]
["En  guaraníes"]
[]
[null,2022,2021]
["Impuesto a la renta"]
["Impuesto a la renta",0,971400566]
[]
[]
[]
[]
["Total",{"$f":"SUM($B8:B13)","v":0},{"$f":"SUM($C8:C13)","v":971400566}]

{"sheet":"Nota 33","index":37,"n_rows":15,"n_cols":5,"rows_kept":15,"cut":false,"hidden":false,"merged":[[4,0,4,1]]}
[{"$f":"Indice!C1","v":"TECNOLOGIA DEL SUR S.A.E.(TECSUL S.A.E.)"},null,null,null,"ER"]
[]
[]
["Nota 33 - Resultado extraordinario neto de impuesto a la renta"]
["En  guaraníes"]
[]
[null,2022,2021]
["Conceptos"]
["Resultado extraordinario neto de impuesto a la renta",0,5846865545]
[]
[]
[]
[]
[]
["Total",{"$f":"SUM($B8:B14)","v":0},{"$f":"SUM($C8:C14)","v":5846865545}]

{"sheet":"Nota 34","index":38,"n_rows":12,"n_cols":5,"rows_kept":12,"cut":false,"hidden":false,"merged":[[4,0,4,1]]}
[{"$f":"Indice!C1","v":"TECNOLOGIA DEL SUR S.A.E.(TECSUL S.A.E.)"},null,null,null,"ER"]
[]
[null,"NO APLICABLE"]
["Nota 34 - Resultado sobre actividades discontinuadas neto de impuesto a la renta"]
["En  guaraníes"]
[]
["Resultado sobre actividades discontinuadas neto de impuesto a la renta",2022,2021]
[]
["(nueva cuenta a incluir)"]
["Subtotal"]
["- Impuesto a la renta"]
["Total",{"$f":"SUM($B8:B11)","v":0},{"$f":"SUM($C8:C11)","v":0}]

{"sheet":"Nota 35","index":39,"n_rows":10,"n_cols":5,"rows_kept":10,"cut":false,"hidden":false,"merged":[]}
[{"$f":"Indice!C1","v":"TECNOLOGIA DEL SUR S.A.E.(TECSUL S.A.E.)"},null,null,null,"ER"]
[]
[]
["NOTA 35- UTILIDAD (PÉRDIDA) NETA DEL AÑO Y POR ACCION ORDINARIA"]
[]
[]
[null,2022,2021]
["Cantidad de Acciones Ordinarias en Circulación",50700,46000]
["Utilidad Neta",2669546298,{"$f":"ER!D31","v":5846865545}]
["Utilidad Neta por Acción Ordinaria",{"$f":"IFERROR(B9/B8,0)","v":52653.773136094678},{"$f":"IFERROR(C9/C8,0)","v":127105.7727173913}]

{"sheet":"Nota 36","index":40,"n_rows":16,"n_cols":5,"rows_kept":16,"cut":false,"hidden":false,"merged":[[5,0,5,8],[3,0,3,4]]}
[{"$f":"Indice!C1","v":"TECNOLOGIA DEL SUR S.A.E.(TECSUL S.A.E.)"},null,null,null,"Indice"]
[]
[null,null,"NO APLICABLE"]
["NOTA 36 - ACTIVOS GRAVADOS"]
[]
["Los siguientes bienes de propiedad de la Sociedad han sido hipotecados y prendados en garantía de obligaciones financieras."]
[]
[{"$f":"IFERROR(\"Al \"&DAY(Indice!B6)&\" de \"&VLOOKUP(marzo(Indice!B6marzo),Indice!S:T,2,0)&\" de \"&AÑO2022(Indice!B6-365),\"Al 30 de junio de año 2022\")","v":"Al 30 de junio de año 2022"}]
["Tipo de Activo","Datos  del activo gravado","Tipo de garantía","Importe (indicar   moneda)","A favor de"]
[]
[]
[]
[]
[]
[{"$f":"IFERROR(\"Al \"&DAY(Indice!B6)&\" de \"&VLOOKUP(MONTH(Indice!B6),Indice!S:T,2,0)&\" de \"&YEAR(Indice!B6-1),\"Al dia... de mes… de año 2XX2…\")","v":"Al 30 de Septiembre de 2022"}]
["Tipo de Activo","Datos  del activo gravado","Tipo de garantía","Importe (indicar   moneda)","A favor de"]

{"sheet":"Nota 37","index":41,"n_rows":21,"n_cols":5,"rows_kept":21,"cut":false,"hidden":false,"merged":[[20,0,20,7],[4,0,4,8],[5,0,5,8],[16,0,17,7],[6,0,6,7],[7,0,7,6],[8,0,8,6],[9,0,9,4],[10,0,10,4],[11,0,11,4],[12,0,12,4],[14,0,14,4],[13,0,13,4],[15,0,15,4]]}
[{"$f":"Indice!C1","v":"TECNOLOGIA DEL SUR S.A.E.(TECSUL S.A.E.)"},null,null,null,"Indice"]
[]
[]
["NOTA 37 - CONTINGENCIAS Y COMPROMISOS "]
[]
[{"$f":"IFERROR(\"Los principales contratos suscriptos por la Sociedad, vigentes al  \"&DAY(Indice!B6)&\" de \"&VLOOKUP(MONTH(Indice!B6),Indice!S:T,2,0)&\" de \"&YEAR(Indice!B6-1)&\" son:\",\"Los principales contratos suscriptos por la Sociedad, vigentes al 31 de diciembre 2020 son:\")","v":"Los principales contratos suscriptos por la Sociedad, vigentes al  30 de Septiembre de 2022 son:"}]
["a) Obra Desague pluvial  de la Avenida Molas Lopez\n"]
["b) Rehabilitacion y pavimentacion asfaltica del tramo Arroyo y Esteros - Direccion de Vialidad - Ad Referendum a la reprogramacion presupestaria. Contrato 710/2019.\n"]
["c) Mejoramiento y Rehabilitacion del tramo Avenida de la Victoria de la Ciudad de San Lorenzo Tramo 2 y 3. Contrato 719/2019.\n"]
["d) Mejoramiento y Rehabilitacion del tramo Avenida de la Victoria de la Ciudad de San Lorenzo Tramo 2 y 3. Contrato 719/2019. - ADENDA"]
["e) Obra Corredores del Este Acceso al puente de la integracion \n"]
["f) Rehabilitacion y  Pavimentacion del tramo San Juan Nepomuceno Ruta Nº6\n"]
["g)Obras de Mejoramiento del Arroyo Sosa- Barrio Obrero de Asuncion - Segunda Etapa\n"]
["Obra Ruta de la leche - Region Occidental - Lote Nº3\n"]
["i)Obras Urbanizacion Costa del Lago\n"]
["j)Construccion de Escuelas-MINISTERIO DE EDUCACION "]
[{"$f":"IFERROR(\"Al  \"&(Indice!B6)&\" de \"&VLOOKUP((Indice!B6),Indice!S:T,2,0)&\" de \"&(Indice!B6-1)&\" no existen situaciones contingentes, ni reclamos que pudieran resultar en la generación de obligaciones para la Sociedad adicionales a las que se presentan en estos estados financieros.\",\"Al 30 de junio de 2022 no existen situaciones contingentes, ni reclamos que pudieran resultar en la generación de obligaciones para la Sociedad adicionales a las que se presentan en estos estados financieros.\")","v":"Al 30 de junio de 2022 no existen situaciones contingentes, ni reclamos que pudieran resultar en la generación de obligaciones para la Sociedad adicionales a las que se presentan en estos estados financieros."}]
[]
[]
[]
["Obs.: Esta información debe estar ajustada  a lo requerido por la Norma de Información Financiera N° 5 Contingencias y sucesos que ocurren después de la fecha del balance. "]

{"sheet":"Nota 38","index":42,"n_rows":25,"n_cols":4,"rows_kept":25,"cut":false,"hidden":false,"merged":[[3,0,3,6],[5,0,5,6],[6,0,6,6],[8,0,8,6]]}
[{"$f":"Indice!C1","v":"TECNOLOGIA DEL SUR S.A.E.(TECSUL S.A.E.)"},null,null,"Índice"]
[]
[null,"NO APLICABLE"]
["NOTA 38 - IMPUESTO DIFERIDO"]
["En miles de guaraníes"]
["Al … de …........... 20X2 la Sociedad constituyó una provisión para impuesto a la renta de Guaraníes  …... (Al … de …...............20X1:  Guaraníes  …....) / (La Sociedad no ha constituido provisión para impuesto a la renta, debido a que a esa fecha la misma generó renta imponible que fue compensada con quebrantos impositivos acumulados a esa fecha). "]
["La Sociedad contabiliza el impuesto a la renta por el método de lo diferido, método del pasivo. El mencionado método establece la determinación de activos o pasivos impositivos diferidos netos basados en las diferencias temporales y temporarias, con cargo a la línea Impuesto a la renta del Estado de resultados."]
[]
["El siguiente cuadro detalla las diferencias temporales a la tasa del impuesto a los efectos de determinación del impuesto diferido:"]
[]
[null,2022,2021]
["Activos y pasivos impositivos diferidos: "]
["Caja y Bancos"]
["Inversiones"]
["Previsión para deudores incobrables"]
["Bienes de uso"]
["Activos intangibles"]
["Previsión del pasivo"]
["Deudas comerciales y bancarias"]
["Bienes de cambio"]
["Sub - total  "]
["Previsión para impuestos diferidos netos "]
["Total activo/pasivo impositivo diferido neto antes de quebrantos"]
["Quebranto impositivo"]
["Total"]

{"sheet":"Nota 39","index":43,"n_rows":9,"n_cols":5,"rows_kept":9,"cut":false,"hidden":false,"merged":[[5,0,5,8],[8,0,8,8],[12,0,12,8],[3,0,3,1]]}
[{"$f":"Indice!C1","v":"TECNOLOGIA DEL SUR S.A.E.(TECSUL S.A.E.)"},null,null,null,"Indice"]
[]
[]
["NO APLICABLE"]
["NOTA 39 - HECHOS POSTERIORES"]
[{"$f":"'[4]5-NOTAS A LOS EEFF'!$B$299","v":"10. OTRAS NOTAS Y REVELACIONES QUE SE CONSIDEREN NECESARIAS DE CONFORMIDAD A LAS NORMAS CONTABLES"}]
[]
[]
["Entre la fecha de cierre del ejercicio y la fecha de preparación de estos estados financieros, no han ocurrido hechos significativos de carácter financiero o de otra índole que afecten la situación patrimonial o financiera o los resultados de la Sociedad al 30 de setiembre de 2022"]

{"sheet":"Nota 40","index":44,"n_rows":34,"n_cols":3,"rows_kept":34,"cut":false,"hidden":false,"merged":[[7,0,7,6],[23,0,23,5]]}
[{"$f":"Indice!C1","v":"TECNOLOGIA DEL SUR S.A.E.(TECSUL S.A.E.)"},null,"Indice"]
[]
[]
["NO APLICABLE"]
["NOTA 40 - SALDOS Y TRANSACCIONES CON PARTES RELACIONADAS"]
["En  guaraníes"]
[]
[]
[]
[null,2022,2021]
["ACTIVO"]
["Inversiones temporales",0,0]
["Cuentas a cobrar comerciales",0,0]
["Otros créditos",0,0]
["Total activo",0,0]
["PASIVO",0,0]
["Cuentas por pagar comerciales",0,0]
["Préstamos a corto plazo",0,0]
["Provisiones",0,0]
["Préstamos a largo plazo",0,0]
["Otros pasivos",0,0]
["Total pasivo",0,0]
[]
[]
[]
[null,2022,2021]
["Costo de ventas"]
["Compras a ….",0,0]
[]
["Gastos administrativos"]
["Honorarios por servicios",0,0]
["Otros ",0,0]
["Gastos financieros ",0]
["Intereses pagados por préstamos",0,0]

{"sheet":"Base de Monedas","index":45,"n_rows":179,"n_cols":3,"rows_kept":179,"cut":false,"hidden":false,"merged":[]}
["PYG","Guaraní","Índice"]
["USD","Dólar estadounidense"]
["EUR","Euro"]
["AED","Dírham de los Emiratos Árabes Unidos"]
["AFN","Afgani"]
["ALL","Lek"]
["AMD","Dram armenio"]
["ANG","Florín antillano neerlandés"]
["AOA","Kwanza"]
["ARS","Peso argentino"]
["AUD","Dólar australiano"]
["AWG","Florín arubeño"]
["AZN","Manat azerbaiyano"]
["BAM","Marco convertible"]
["BBD","Dólar de Barbados"]
["BDT","Taka"]
["BGN","Lev búlgaro"]
["BHD","Dinar bareiní"]
["BIF","Franco de Burundi"]
["BMD","Dólar bermudeño"]
["BND","Dólar de Brunéi"]
["BOB","Boliviano"]
["BOV","MVDOL"]
["BRL","Real brasileño"]
["BSD","Dólar bahameño"]
["BTN","Ngultrum"]
["BWP","Pula"]
["BYN","Rublo bielorruso"]
["BZD","Dólar beliceño"]
["CAD","Dólar canadiense"]
["CDF","Franco congoleño"]
["CHE","Euro WIR"]
["CHF","Franco suizo"]
["CHW","Franco WIR"]
["CLF","Unidad de fomento"]
["CLP","Peso chileno"]
["CNY","Yuan chino"]
["COP","Peso colombiano"]
["COU","Unidad de valor real"]
["CRC","Colón costarricense"]
["CUC","Peso convertible"]
["CUP","Peso cubano"]
["CVE","Escudo caboverdiano"]
["CZK","Corona checa"]
["DJF","Franco yibutiano"]
["DKK","Corona danesa"]
["DOP","Peso dominicano"]
["DZD","Dinar argelino"]
["EGP","Libra egipcia"]
["ERN","Nakfa"]
["ETB","Birr etíope"]
["FJD","Dólar fiyiano"]
["FKP","Libra malvinense"]
["GBP","Libra esterlina"]
["GEL","Lari"]
["GHS","Cedi ghanés"]
["GIP","Libra de Gibraltar"]
["GMD","Dalasi"]
["GNF","Franco guineano"]
["GTQ","Quetzal"]
["GYD","Dólar guyanés"]
["HKD","Dólar de Hong Kong"]
["HNL","Lempira"]
["HRK","Kuna"]
["HTG","Gourde"]
["HUF","Forinto"]
["IDR","Rupia indonesia"]
["ILS","Nuevo shéquel israelí"]
["INR","Rupia india"]
["IQD","Dinar iraquí"]
["IRR","Rial iraní"]
["ISK","Corona islandesa"]
["JMD","Dólar jamaiquino"]
["JOD","Dinar jordano"]
["JPY","Yen"]
["KES","Chelín keniano"]
["KGS","Som"]
["KHR","Riel"]
["KMF","Franco comorense"]
["KPW","Won norcoreano"]
["KRW","Won"]
["KWD","Dinar kuwaití"]
["KYD","Dólar de las Islas Caimán"]
["KZT","Tenge"]
["LAK","Kip"]
["LBP","Libra libanesa"]
["LKR","Rupia de Sri Lanka"]
["LRD","Dólar liberiano"]
["LSL","Loti"]
["LYD","Dinar libio"]
["MAD","Dírham marroquí"]
["MDL","Leu moldavo"]
["MGA","Ariary malgache"]
["MKD","Denar"]
["MMK","Kyat"]
["MNT","Tugrik"]
["MOP","Pataca"]
["MRU","Uguiya"]
["MUR","Rupia de Mauricio"]
["MVR","Rufiyaa"]
["MWK","Kwacha"]
["MXN","Peso mexicano"]
["MXV","Unidad de Inversión (UDI) mexicana"]
["MYR","Ringgit malayo"]
["MZN","Metical mozambiqueño"]
["NAD","Dólar namibio"]
["NGN","Naira"]
["NIO","Córdoba"]
["NOK","Corona noruega"]
["NPR","Rupia nepalí"]
["NZD","Dólar neozelandés"]
["OMR","Rial omaní"]
["PAB","Balboa"]
["PEN","Sol"]
["PGK","Kina"]
["PHP","Peso filipino"]
["PKR","Rupia pakistaní"]
["PLN","Złoty"]
["QAR","Riyal qatarí"]
["RON","Leu rumano"]
["RSD","Dinar serbio"]
["RUB","Rublo ruso"]
["RWF","Franco ruandés"]
["SAR","Riyal saudí"]
["SBD","Dólar de las Islas Salomón"]
["SCR","Rupia seychelense"]
["SDG","Dinar sudanés"]
["SEK","Corona sueca"]
["SGD","Dólar de Singapur"]
["SHP","Libra de Santa Elena"]
["SLL","Leone"]
["SOS","Chelín somalí"]
["SRD","Dólar surinamés"]
["SSP","Libra sursudanesa"]
["STN","Dobra"]
["SVC","Colon Salvadoreño"]
["SYP","Libra siria"]
["SZL","Lilangeni"]
["THB","Baht"]
["TJS","Somoni tayiko"]
["TMT","Manat turcomano"]
["TND","Dinar tunecino"]
["TOP","Paʻanga"]
["TRY","Lira turca"]
["TTD","Dólar de Trinidad y Tobago"]
["TWD","Nuevo dólar taiwanés"]
["TZS","Chelín tanzano"]
["UAH","Grivna"]
["UGX","Chelín ugandés"]
["USN","Dólar estadounidense (Siguiente día)"]
["UYI","Peso en Unidades Indexadas (Uruguay)"]
["UYU","Peso uruguayo"]
["UYW","Unidad Previsional"]
["UZS","Som uzbeko"]
["VES7​","Bolívar soberano"]
["VND","Dong vietnamita"]
["VUV","Vatu"]
["WST","Tala"]
["XAF","Franco CFA de África Central"]
["XAG","Plata (una onza troy)"]
["XAU","Oro (una onza troy)"]
["XBA","Unidad compuesta europea (EURCO) (Unidad del mercados de bonos)"]
["XBB","Unidad Monetaria europea (E.M.U.-6) (Unidad del mercado de bonos)"]
["XBC","Unidad europea de cuenta 9 (E.U.A.-9) (Unidad del mercado de bonos)"]
["XBD","Unidad europea de cuenta 17 (E.U.A.-17) (Unidad del mercado de bonos)"]
["XCD","Dólar del Caribe Oriental"]
["XDR","Derechos especiales de giro"]
["XOF","Franco CFA de África Occidental"]
["XPD","Paladio (una onza troy)"]
["XPF","Franco CFP"]
["XPT","Platino (una onza troy)"]
["XSU","SUCRE"]
["XTS","Reservado para pruebas"]
["XUA","Unidad de cuenta BAD"]
["XXX","Sin divisa"]
["YER","Rial yemení"]
["ZAR","Rand"]
["ZMW","Kwacha zambiano"]
["ZWL","Dólar zimbabuense"]